Workbook

Sheet Data
B1: dv0 | C1: dv6
A2: Patient 1 | B2: 296 | C2: 175
A3: Patient 2 | B3: 376 | C3: 329
A4: Patient 3 | B4: 309 | C4: 238
A5: Patient 4 | B5: 222 | C5: 60
A6: Patient 5 | B6: 150 | C6: 271
A7: Patient 6 | B7: 316 | C7: 291
A8: Patient 7 | B8: 321 | C8: 364
A9: Patient 8 | B9: 447 | C9: 402
A10: Patient 9 | B10: 220 | C10: 70
A11: Patient 10 | B11: 375 | C11: 335
A12: Patient 11 | B12: 310 | C12: 300
A13: Patient 12 | B13: 310 | C13: 245
A14: Patient 13 | B14: 282 | C14: 186
A15: Patient 14 | B15: 317 | C15: 31
A16: Patient 15 | B16: 362 | C16: 104
A17: Patient 16 | B17: 338 | C17: 132
A18: Patient 17 | B18: 263 | C18: 94
A19: Patient 18 | B19: 138 | C19: 38
A20: Patient 19 | B20: 329 | C20: 62
A21: Patient 20 | B21: 292 | C21: 139
A22: Patient 21 | B22: 275 | C22: 94
A23: Patient 22 | B23: 150 | C23: 48
A24: Patient 23 | B24: 319 | C24: 68
A25: Patient 24 | B25: 300 | C25: 138

Sheet 2 samples t test
B1: XLSTAT 2023.2.0.1411 - Two-sample t-test and z-test - Start time: 12/09/2023 at 16:34:48 / End time: 12/09/2023 at 16:34:50 / Microsoft Excel 16.016731
B2: Sample 1: Workbook = demoPairedt_EN.xls / Sheet = Data / Range = 'Data'!$B:$B / 24 rows and 1 column
B3: Sample 2: Workbook = demoPairedt_EN.xls / Sheet = Data / Range = 'Data'!$C:$C / 24 rows and 1 column
B4: Hypothesized difference (D): 0
B5: Significance level (%): 5
B10: Summary statistics:
B12: Variable | C12: Observations | D12: Obs. with missing data | E12: Obs. without missing data | F12: Minimum | G12: Maximum | H12: Mean | I12: Std. deviation
B13: dv0 | C13: 24 | D13: 0 | E13: 24 | F13: 138 | G13: 447 | H13: 292.375 | I13: 73.86757393
B14: dv6 | C14: 24 | D14: 0 | E14: 24 | F14: 31 | G14: 402 | H14: 175.5833333 | I14: 116.2126674
B17: Normality test:
B19: Shapiro-Wilk test (dv0):
B21: W | C21: 0.9238299176
B22: p-value (Two-tailed) | C22: 0.07101880556
B23: alpha | C23: 0.05
B25: Test interpretation:
B26: H0: The residuals follow a Normal distribution.
B27: Ha: The residuals do not follow a Normal distribution.
B28: As the computed p-value is greater than the significance level alpha=0,05, one cannot reject the null hypothesis H0.
B32: Shapiro-Wilk test (dv6):
B34: W | C34: 0.9128179919
B35: p-value (Two-tailed) | C35: 0.04061744301
B36: alpha | C36: 0.05
B38: Test interpretation:
B39: H0: The residuals follow a Normal distribution.
B40: Ha: The residuals do not follow a Normal distribution.
B41: As the computed p-value is lower than the significance level alpha=0,05, one should reject the null hypothesis H0, and accept the alternative hypothesis Ha.
B45: t-test for two paired samples / Two-tailed test:
B47: 95% confidence interval on the difference between the means:
B48: 74.19849725 | C48: 159.3848361
B50: Difference | C50: 116.7916667
B51: t (Observed value) | C51: 5.672317261
B52: |t| (Critical value) | C52: 2.06865761
B53: DF | C53: 23
B54: p-value (Two-tailed) | C54: 8.945245721e-06
B55: alpha | C55: 0.05
B56: The number of degrees of freedom is approximated by the Welch-Satterthwaite formula
B58: Test interpretation:
B59: H0: The difference between the means is equal to 0.
B60: Ha: The difference between the means is different from 0.
B61: As the computed p-value is lower than the significance level alpha=0,05, one should reject the null hypothesis H0, and accept the alternative hypothesis Ha.
B87: Dominance diagram(dv0):

Sheet XLSTAT_20230912_163446_1_HID2 (hidden)
A1: 0.85 | B1: 138 | C1: 1.85 | D1: 31
A2: 1.15 | B2: 138 | C2: 2.15 | D2: 31
A3: 0.85 | B3: 150 | C3: 1.85 | D3: 38
A4: 1.15 | B4: 150 | C4: 2.15 | D4: 38
A5: 0.85 | B5: 150 | C5: 1.85 | D5: 48
A6: 1.15 | B6: 150 | C6: 2.15 | D6: 48
A7: 0.85 | B7: 220 | C7: 1.85 | D7: 60
A8: 1.15 | B8: 220 | C8: 2.15 | D8: 60
A9: 0.85 | B9: 222 | C9: 1.85 | D9: 62
A10: 1.15 | B10: 222 | C10: 2.15 | D10: 62
A11: 0.85 | B11: 263 | C11: 1.85 | D11: 68
A12: 1.15 | B12: 263 | C12: 2.15 | D12: 68
A13: 0.85 | B13: 275 | C13: 1.85 | D13: 70
A14: 1.15 | B14: 275 | C14: 2.15 | D14: 70
A15: 0.85 | B15: 282 | C15: 1.85 | D15: 94
A16: 1.15 | B16: 282 | C16: 2.15 | D16: 94
A17: 0.85 | B17: 292 | C17: 1.85 | D17: 94
A18: 1.15 | B18: 292 | C18: 2.15 | D18: 94
A19: 0.85 | B19: 296 | C19: 1.85 | D19: 104
A20: 1.15 | B20: 296 | C20: 2.15 | D20: 104
A21: 0.85 | B21: 300 | C21: 1.85 | D21: 132
A22: 1.15 | B22: 300 | C22: 2.15 | D22: 132
A23: 0.85 | B23: 309 | C23: 1.85 | D23: 138
A24: 1.15 | B24: 309 | C24: 2.15 | D24: 138
A25: 0.85 | B25: 310 | C25: 1.85 | D25: 139
A26: 1.15 | B26: 310 | C26: 2.15 | D26: 139
A27: 0.85 | B27: 310 | C27: 1.85 | D27: 175
A28: 1.15 | B28: 310 | C28: 2.15 | D28: 175
A29: 0.85 | B29: 316 | C29: 1.85 | D29: 186
A30: 1.15 | B30: 316 | C30: 2.15 | D30: 186
A31: 0.85 | B31: 317 | C31: 1.85 | D31: 238
A32: 1.15 | B32: 317 | C32: 2.15 | D32: 238
A33: 0.85 | B33: 319 | C33: 1.85 | D33: 245
A34: 1.15 | B34: 319 | C34: 2.15 | D34: 245
A35: 0.85 | B35: 321 | C35: 1.85 | D35: 271
A36: 1.15 | B36: 321 | C36: 2.15 | D36: 271
A37: 0.85 | B37: 329 | C37: 1.85 | D37: 291
A38: 1.15 | B38: 329 | C38: 2.15 | D38: 291
A39: 0.85 | B39: 338 | C39: 1.85 | D39: 300
A40: 1.15 | B40: 338 | C40: 2.15 | D40: 300
A41: 0.85 | B41: 362 | C41: 1.85 | D41: 329
A42: 1.15 | B42: 362 | C42: 2.15 | D42: 329
A43: 0.85 | B43: 375 | C43: 1.85 | D43: 335
A44: 1.15 | B44: 375 | C44: 2.15 | D44: 335
A45: 0.85 | B45: 376 | C45: 1.85 | D45: 364
A46: 1.15 | B46: 376 | C46: 2.15 | D46: 364
A47: 0.85 | B47: 447 | C47: 1.85 | D47: 402
A48: 1.15 | B48: 447 | C48: 2.15 | D48: 402

Sheet XLSTAT_20230912_163446_1_HID1 (hidden)
A1: 1 | B1: 138 | C1: 2 | D1: 31
A2: 0.94 | B2: 150 | C2: 1.8 | D2: 38
A3: 1.06 | B3: 150 | C3: 2.2 | D3: 48
A4: 1.04 | B4: 220 | C4: 1.866666667 | D4: 60
A5: 0.96 | B5: 222 | C5: 2.133333333 | D5: 62
A6: 1.08 | B6: 263 | C6: 1.933333333 | D6: 68
A7: 0.92 | B7: 275 | C7: 2.066666667 | D7: 70
A8: 1.026666667 | B8: 282 | C8: 2 | D8: 94
A9: 0.9733333333 | B9: 292 | C9: 1.914285714 | D9: 94
A10: 1.2 | B10: 296 | C10: 2.085714286 | D10: 104
A11: 0.8 | B11: 300 | C11: 2 | D11: 132
A12: 1.155555556 | B12: 309 | C12: 1.914285714 | D12: 138
A13: 0.8444444444 | B13: 310 | C13: 2.085714286 | D13: 139
A14: 1.111111111 | B14: 310 | C14: 2.057142857 | D14: 175
A15: 0.8888888889 | B15: 316 | C15: 1.942857143 | D15: 186
A16: 1.066666667 | B16: 317 | C16: 2.057142857 | D16: 238
A17: 0.9333333333 | B17: 319 | C17: 1.942857143 | D17: 245
A18: 1.022222222 | B18: 321 | C18: 2 | D18: 271
A19: 0.9777777778 | B19: 329 | C19: 1.914285714 | D19: 291
A20: 1.04 | B20: 338 | C20: 2.085714286 | D20: 300
A21: 0.96 | B21: 362 | C21: 2.057142857 | D21: 329
A22: 1.04 | B22: 375 | C22: 1.942857143 | D22: 335
A23: 0.96 | B23: 376 | C23: 2.057142857 | D23: 364
A24: 1 | B24: 447 | C24: 1.942857143 | D24: 402

Sheet XLSTAT_20230912_163446_1_HID (hidden)
A1: 1 | B1: =IF(-1^(INT(A1/2)+2)>0,2.0686576103+2*INT(A1/2-1/2)*0.0046930942,51) -> 2.06865761 | C1: =2.0686576103+2*INT(A1/2-1/2)*0.0046930942 -> 2.06865761 | D1: =[2]!XLSTAT_PDFStudent(B1,23) -> 0.05092345503 | E1: 1 | F1: =IF(-1^(INT(E1/2)+2)>0,-4.4152046947+2*INT(E1/2-1/2)*0.0046930942,51) -> -4.415204695 | G1: =-4.4152046947+2*INT(E1/2-1/2)*0.0046930942 -> -4.415204695 | H1: =[2]!XLSTAT_PDFStudent(F1,23) -> 0.0002494535229 | I1: 1 | K1: =-4.4152046947+(I1-1)*0.0176962112 -> -4.415204695 | L1: =[2]!XLSTAT_PDFStudent(K1,23) -> 0.0002494535229 | M1: 1 | O1: =M1-24*INT((-1/2+M1)/24) -> 1 | P1: =1+INT((M1-1/2)/24) -> 1
A2: 2 | B2: 51 | C2: 2.06865761 | D2: =[2]!XLSTAT_PDFStudent(B2,23) -> 8.11631738e-26 | E2: 2 | F2: 51 | G2: -4.415204695 | H2: =[2]!XLSTAT_PDFStudent(F2,23) -> 8.11631738e-26 | I2: 2 | K2: -4.397508484 | L2: =[2]!XLSTAT_PDFStudent(K2,23) -> 0.0002607059681 | M2: 2 | O2: 2 | P2: 1
A3: 3 | B3: 51 | C3: 2.078043799 | D3: =[2]!XLSTAT_PDFStudent(B3,23) -> 8.11631738e-26 | E3: 3 | F3: 51 | G3: -4.405818506 | H3: =[2]!XLSTAT_PDFStudent(F3,23) -> 8.11631738e-26 | I3: 3 | K3: -4.379812272 | L3: =[2]!XLSTAT_PDFStudent(K3,23) -> 0.0002724618093 | M3: 3 | O3: 3 | P3: 1
A4: 4 | B4: 2.078043799 | C4: 2.078043799 | D4: =[2]!XLSTAT_PDFStudent(B4,23) -> 0.05005960639 | E4: 4 | F4: -4.405818506 | G4: -4.405818506 | H4: =[2]!XLSTAT_PDFStudent(F4,23) -> 0.0002553605175 | I4: 4 | K4: -4.362116061 | L4: =[2]!XLSTAT_PDFStudent(K4,23) -> 0.0002847431577 | M4: 4 | O4: 4 | P4: 1
A5: 5 | B5: 2.087429987 | C5: 2.087429987 | D5: =[2]!XLSTAT_PDFStudent(B5,23) -> 0.04920780716 | E5: 5 | F5: -4.396432318 | G5: -4.396432318 | H5: =[2]!XLSTAT_PDFStudent(F5,23) -> 0.0002614062854 | I5: 5 | K5: -4.34441985 | L5: =[2]!XLSTAT_PDFStudent(K5,23) -> 0.0002975730645 | M5: 5 | O5: 5 | P5: 1
A6: 6 | B6: 51 | C6: 2.087429987 | D6: =[2]!XLSTAT_PDFStudent(B6,23) -> 8.11631738e-26 | E6: 6 | F6: 51 | G6: -4.396432318 | H6: =[2]!XLSTAT_PDFStudent(F6,23) -> 8.11631738e-26 | I6: 6 | K6: -4.326723639 | L6: =[2]!XLSTAT_PDFStudent(K6,23) -> 0.0003109755589 | M6: 6 | O6: 6 | P6: 1
A7: 7 | B7: 51 | C7: 2.096816175 | D7: =[2]!XLSTAT_PDFStudent(B7,23) -> 8.11631738e-26 | E7: 7 | F7: 51 | G7: -4.387046129 | H7: =[2]!XLSTAT_PDFStudent(F7,23) -> 8.11631738e-26 | I7: 7 | K7: -4.309027428 | L7: =[2]!XLSTAT_PDFStudent(K7,23) -> 0.0003249756877 | M7: 7 | O7: 7 | P7: 1
A8: 8 | B8: 2.096816175 | C8: 2.096816175 | D8: =[2]!XLSTAT_PDFStudent(B8,23) -> 0.04836795437 | E8: 8 | F8: -4.387046129 | G8: -4.387046129 | H8: =[2]!XLSTAT_PDFStudent(F8,23) -> 0.0002675940301 | I8: 8 | K8: -4.291331216 | L8: =[2]!XLSTAT_PDFStudent(K8,23) -> 0.0003395995551 | M8: 8 | O8: 8 | P8: 1
A9: 9 | B9: 2.106202364 | C9: 2.106202364 | D9: =[2]!XLSTAT_PDFStudent(B9,23) -> 0.04753994426 | E9: 9 | F9: -4.377659941 | G9: -4.377659941 | H9: =[2]!XLSTAT_PDFStudent(F9,23) -> 0.0002739270265 | I9: 9 | K9: -4.273635005 | L9: =[2]!XLSTAT_PDFStudent(K9,23) -> 0.0003548743659 | M9: 9 | O9: 9 | P9: 1
A10: 10 | B10: 51 | C10: 2.106202364 | D10: =[2]!XLSTAT_PDFStudent(B10,23) -> 8.11631738e-26 | E10: 10 | F10: 51 | G10: -4.377659941 | H10: =[2]!XLSTAT_PDFStudent(F10,23) -> 8.11631738e-26 | I10: 10 | K10: -4.255938794 | L10: =[2]!XLSTAT_PDFStudent(K10,23) -> 0.0003708284682 | M10: 10 | O10: 10 | P10: 1
A11: 11 | B11: 51 | C11: 2.115588552 | D11: =[2]!XLSTAT_PDFStudent(B11,23) -> 8.11631738e-26 | E11: 11 | F11: 51 | G11: -4.368273753 | H11: =[2]!XLSTAT_PDFStudent(F11,23) -> 8.11631738e-26 | I11: 11 | K11: -4.238242583 | L11: =[2]!XLSTAT_PDFStudent(K11,23) -> 0.0003874913995 | M11: 11 | O11: 11 | P11: 1
A12: 12 | B12: 2.115588552 | C12: 2.115588552 | D12: =[2]!XLSTAT_PDFStudent(B12,23) -> 0.04672367236 | E12: 12 | F12: -4.368273753 | G12: -4.368273753 | H12: =[2]!XLSTAT_PDFStudent(F12,23) -> 0.000280408623 | I12: 12 | K12: -4.220546372 | L12: =[2]!XLSTAT_PDFStudent(K12,23) -> 0.0004048939325 | M12: 12 | O12: 12 | P12: 1
A13: 13 | B13: 2.124974741 | C13: 2.124974741 | D13: =[2]!XLSTAT_PDFStudent(B13,23) -> 0.04591903352 | E13: 13 | F13: -4.358887564 | G13: -4.358887564 | H13: =[2]!XLSTAT_PDFStudent(F13,23) -> 0.0002870422426 | I13: 13 | K13: -4.20285016 | L13: =[2]!XLSTAT_PDFStudent(K13,23) -> 0.0004230681247 | M13: 13 | O13: 13 | P13: 1
A14: 14 | B14: 51 | C14: 2.124974741 | D14: =[2]!XLSTAT_PDFStudent(B14,23) -> 8.11631738e-26 | E14: 14 | F14: 51 | G14: -4.358887564 | H14: =[2]!XLSTAT_PDFStudent(F14,23) -> 8.11631738e-26 | I14: 14 | K14: -4.185153949 | L14: =[2]!XLSTAT_PDFStudent(K14,23) -> 0.0004420473675 | M14: 14 | O14: 14 | P14: 1
A15: 15 | B15: 51 | C15: 2.134360929 | D15: =[2]!XLSTAT_PDFStudent(B15,23) -> 8.11631738e-26 | E15: 15 | F15: 51 | G15: -4.349501376 | H15: =[2]!XLSTAT_PDFStudent(F15,23) -> 8.11631738e-26 | I15: 15 | K15: -4.167457738 | L15: =[2]!XLSTAT_PDFStudent(K15,23) -> 0.0004618664391 | M15: 15 | O15: 15 | P15: 1
A16: 16 | B16: 2.134360929 | C16: 2.134360929 | D16: =[2]!XLSTAT_PDFStudent(B16,23) -> 0.04512592195 | E16: 16 | F16: -4.349501376 | G16: -4.349501376 | H16: =[2]!XLSTAT_PDFStudent(F16,23) -> 0.0002938313847 | I16: 16 | K16: -4.149761527 | L16: =[2]!XLSTAT_PDFStudent(K16,23) -> 0.0004825615572 | M16: 16 | O16: 16 | P16: 1
A17: 17 | B17: 2.143747117 | C17: 2.143747117 | D17: =[2]!XLSTAT_PDFStudent(B17,23) -> 0.04434423131 | E17: 17 | F17: -4.340115187 | G17: -4.340115187 | H17: =[2]!XLSTAT_PDFStudent(F17,23) -> 0.0003007796266 | I17: 17 | K17: -4.132065316 | L17: =[2]!XLSTAT_PDFStudent(K17,23) -> 0.0005041704354 | M17: 17 | O17: 17 | P17: 1
A18: 18 | B18: 51 | C18: 2.143747117 | D18: =[2]!XLSTAT_PDFStudent(B18,23) -> 8.11631738e-26 | E18: 18 | F18: 51 | G18: -4.340115187 | H18: =[2]!XLSTAT_PDFStudent(F18,23) -> 8.11631738e-26 | I18: 18 | K18: -4.114369104 | L18: =[2]!XLSTAT_PDFStudent(K18,23) -> 0.0005267323399 | M18: 18 | O18: 18 | P18: 1
A19: 19 | B19: 51 | C19: 2.153133306 | D19: =[2]!XLSTAT_PDFStudent(B19,23) -> 8.11631738e-26 | E19: 19 | F19: 51 | G19: -4.330728999 | H19: =[2]!XLSTAT_PDFStudent(F19,23) -> 8.11631738e-26 | I19: 19 | K19: -4.096672893 | L19: =[2]!XLSTAT_PDFStudent(K19,23) -> 0.0005502881496 | M19: 19 | O19: 19 | P19: 1
A20: 20 | B20: 2.153133306 | C20: 2.153133306 | D20: =[2]!XLSTAT_PDFStudent(B20,23) -> 0.04357385473 | E20: 20 | F20: -4.330728999 | G20: -4.330728999 | H20: =[2]!XLSTAT_PDFStudent(F20,23) -> 0.0003078906254 | I20: 20 | K20: -4.078976682 | L20: =[2]!XLSTAT_PDFStudent(K20,23) -> 0.0005748804164 | M20: 20 | O20: 20 | P20: 1
A21: 21 | B21: 2.162519494 | C21: 2.162519494 | D21: =[2]!XLSTAT_PDFStudent(B21,23) -> 0.04281468487 | E21: 21 | F21: -4.321342811 | G21: -4.321342811 | H21: =[2]!XLSTAT_PDFStudent(F21,23) -> 0.0003151681191 | I21: 21 | K21: -4.061280471 | L21: =[2]!XLSTAT_PDFStudent(K21,23) -> 0.0006005534298 | M21: 21 | O21: 21 | P21: 1
A22: 22 | B22: 51 | C22: 2.162519494 | D22: =[2]!XLSTAT_PDFStudent(B22,23) -> 8.11631738e-26 | E22: 22 | F22: 51 | G22: -4.321342811 | H22: =[2]!XLSTAT_PDFStudent(F22,23) -> 8.11631738e-26 | I22: 22 | K22: -4.04358426 | L22: =[2]!XLSTAT_PDFStudent(K22,23) -> 0.000627353281 | M22: 22 | O22: 22 | P22: 1
A23: 23 | B23: 51 | C23: 2.171905683 | D23: =[2]!XLSTAT_PDFStudent(B23,23) -> 8.11631738e-26 | E23: 23 | F23: 51 | G23: -4.311956622 | H23: =[2]!XLSTAT_PDFStudent(F23,23) -> 8.11631738e-26 | I23: 23 | K23: -4.025888048 | L23: =[2]!XLSTAT_PDFStudent(K23,23) -> 0.0006553279316 | M23: 23 | O23: 23 | P23: 1
A24: 24 | B24: 2.171905683 | C24: 2.171905683 | D24: =[2]!XLSTAT_PDFStudent(B24,23) -> 0.04206661395 | E24: 24 | F24: -4.311956622 | G24: -4.311956622 | H24: =[2]!XLSTAT_PDFStudent(F24,23) -> 0.000322615929 | I24: 24 | K24: -4.008191837 | L24: =[2]!XLSTAT_PDFStudent(K24,23) -> 0.0006845272825 | M24: 24 | O24: 24 | P24: 1
A25: 25 | B25: 2.181291871 | C25: 2.181291871 | D25: =[2]!XLSTAT_PDFStudent(B25,23) -> 0.04132953381 | E25: 25 | F25: -4.302570434 | G25: -4.302570434 | H25: =[2]!XLSTAT_PDFStudent(F25,23) -> 0.0003302379611 | I25: 25 | K25: -3.990495626 | L25: =[2]!XLSTAT_PDFStudent(K25,23) -> 0.0007150032463 | M25: 25 | O25: 1 | P25: 2
A26: 26 | B26: 51 | C26: 2.181291871 | D26: =[2]!XLSTAT_PDFStudent(B26,23) -> 8.11631738e-26 | E26: 26 | F26: 51 | G26: -4.302570434 | H26: =[2]!XLSTAT_PDFStudent(F26,23) -> 8.11631738e-26 | I26: 26 | K26: -3.972799415 | L26: =[2]!XLSTAT_PDFStudent(K26,23) -> 0.0007468098212 | M26: 26 | O26: 2 | P26: 2
A27: 27 | B27: 51 | C27: 2.190678059 | D27: =[2]!XLSTAT_PDFStudent(B27,23) -> 8.11631738e-26 | E27: 27 | F27: 51 | G27: -4.293184245 | H27: =[2]!XLSTAT_PDFStudent(F27,23) -> 8.11631738e-26 | I27: 27 | K27: -3.955103203 | L27: =[2]!XLSTAT_PDFStudent(K27,23) -> 0.0007800031678 | M27: 27 | O27: 3 | P27: 2
A28: 28 | B28: 2.190678059 | C28: 2.190678059 | D28: =[2]!XLSTAT_PDFStudent(B28,23) -> 0.04060333598 | E28: 28 | F28: -4.293184245 | G28: -4.293184245 | H28: =[2]!XLSTAT_PDFStudent(F28,23) -> 0.0003380382076 | I28: 28 | K28: -3.937406992 | L28: =[2]!XLSTAT_PDFStudent(K28,23) -> 0.0008146416874 | M28: 28 | O28: 4 | P28: 2
A29: 29 | B29: 2.200064248 | C29: 2.200064248 | D29: =[2]!XLSTAT_PDFStudent(B29,23) -> 0.03988791167 | E29: 29 | F29: -4.283798057 | G29: -4.283798057 | H29: =[2]!XLSTAT_PDFStudent(F29,23) -> 0.0003460207493 | I29: 29 | K29: -3.919710781 | L29: =[2]!XLSTAT_PDFStudent(K29,23) -> 0.0008507861041 | M29: 29 | O29: 5 | P29: 2
A30: 30 | B30: 51 | C30: 2.200064248 | D30: =[2]!XLSTAT_PDFStudent(B30,23) -> 8.11631738e-26 | E30: 30 | F30: 51 | G30: -4.283798057 | H30: =[2]!XLSTAT_PDFStudent(F30,23) -> 8.11631738e-26 | I30: 30 | K30: -3.90201457 | L30: =[2]!XLSTAT_PDFStudent(K30,23) -> 0.0008884995478 | M30: 30 | O30: 6 | P30: 2
A31: 31 | B31: 51 | C31: 2.209450436 | D31: =[2]!XLSTAT_PDFStudent(B31,23) -> 8.11631738e-26 | E31: 31 | F31: 51 | G31: -4.274411869 | H31: =[2]!XLSTAT_PDFStudent(F31,23) -> 8.11631738e-26 | I31: 31 | K31: -3.884318359 | L31: =[2]!XLSTAT_PDFStudent(K31,23) -> 0.0009278476406 | M31: 31 | O31: 7 | P31: 2
A32: 32 | B32: 2.209450436 | C32: 2.209450436 | D32: =[2]!XLSTAT_PDFStudent(B32,23) -> 0.03918315186 | E32: 32 | F32: -4.274411869 | G32: -4.274411869 | H32: =[2]!XLSTAT_PDFStudent(F32,23) -> 0.0003541897571 | I32: 32 | K32: -3.866622147 | L32: =[2]!XLSTAT_PDFStudent(K32,23) -> 0.0009688985855 | M32: 32 | O32: 8 | P32: 2
A33: 33 | B33: 2.218836625 | C33: 2.218836625 | D33: =[2]!XLSTAT_PDFStudent(B33,23) -> 0.03848894732 | E33: 33 | F33: -4.26502568 | G33: -4.26502568 | H33: =[2]!XLSTAT_PDFStudent(F33,23) -> 0.0003625494937 | I33: 33 | K33: -3.848925936 | L33: =[2]!XLSTAT_PDFStudent(K33,23) -> 0.001011723258 | M33: 33 | O33: 9 | P33: 2
A34: 34 | B34: 51 | C34: 2.218836625 | D34: =[2]!XLSTAT_PDFStudent(B34,23) -> 8.11631738e-26 | E34: 34 | F34: 51 | G34: -4.26502568 | H34: =[2]!XLSTAT_PDFStudent(F34,23) -> 8.11631738e-26 | I34: 34 | K34: -3.831229725 | L34: =[2]!XLSTAT_PDFStudent(K34,23) -> 0.001056395299 | M34: 34 | O34: 10 | P34: 2
A35: 35 | B35: 51 | C35: 2.228222813 | D35: =[2]!XLSTAT_PDFStudent(B35,23) -> 8.11631738e-26 | E35: 35 | F35: 51 | G35: -4.255639492 | H35: =[2]!XLSTAT_PDFStudent(F35,23) -> 8.11631738e-26 | I35: 35 | K35: -3.813533514 | L35: =[2]!XLSTAT_PDFStudent(K35,23) -> 0.001102991213 | M35: 35 | O35: 11 | P35: 2
A36: 36 | B36: 2.228222813 | C36: 2.228222813 | D36: =[2]!XLSTAT_PDFStudent(B36,23) -> 0.03780518867 | E36: 36 | F36: -4.255639492 | G36: -4.255639492 | H36: =[2]!XLSTAT_PDFStudent(F36,23) -> 0.0003711043161 | I36: 36 | K36: -3.795837303 | L36: =[2]!XLSTAT_PDFStudent(K36,23) -> 0.001151590466 | M36: 36 | O36: 12 | P36: 2
A37: 37 | B37: 2.237609001 | C37: 2.237609001 | D37: =[2]!XLSTAT_PDFStudent(B37,23) -> 0.03713176638 | E37: 37 | F37: -4.246253303 | G37: -4.246253303 | H37: =[2]!XLSTAT_PDFStudent(F37,23) -> 0.0003798586769 | I37: 37 | K37: -3.778141091 | L37: =[2]!XLSTAT_PDFStudent(K37,23) -> 0.001202275587 | M37: 37 | O37: 13 | P37: 2
A38: 38 | B38: 51 | C38: 2.237609001 | D38: =[2]!XLSTAT_PDFStudent(B38,23) -> 8.11631738e-26 | E38: 38 | F38: 51 | G38: -4.246253303 | H38: =[2]!XLSTAT_PDFStudent(F38,23) -> 8.11631738e-26 | I38: 38 | K38: -3.76044488 | L38: =[2]!XLSTAT_PDFStudent(K38,23) -> 0.001255132274 | M38: 38 | O38: 14 | P38: 2
A39: 39 | B39: 51 | C39: 2.24699519 | D39: =[2]!XLSTAT_PDFStudent(B39,23) -> 8.11631738e-26 | E39: 39 | F39: 51 | G39: -4.236867115 | H39: =[2]!XLSTAT_PDFStudent(F39,23) -> 8.11631738e-26 | I39: 39 | K39: -3.742748669 | L39: =[2]!XLSTAT_PDFStudent(K39,23) -> 0.001310249501 | M39: 39 | O39: 15 | P39: 2
A40: 40 | B40: 2.24699519 | C40: 2.24699519 | D40: =[2]!XLSTAT_PDFStudent(B40,23) -> 0.03646857087 | E40: 40 | F40: -4.236867115 | G40: -4.236867115 | H40: =[2]!XLSTAT_PDFStudent(F40,23) -> 0.0003888171265 | I40: 40 | K40: -3.725052458 | L40: =[2]!XLSTAT_PDFStudent(K40,23) -> 0.001367719627 | M40: 40 | O40: 16 | P40: 2
A41: 41 | B41: 2.256381378 | C41: 2.256381378 | D41: =[2]!XLSTAT_PDFStudent(B41,23) -> 0.0358154925 | E41: 41 | F41: -4.227480927 | G41: -4.227480927 | H41: =[2]!XLSTAT_PDFStudent(F41,23) -> 0.0003979843153 | I41: 41 | K41: -3.707356247 | L41: =[2]!XLSTAT_PDFStudent(K41,23) -> 0.001427638511 | M41: 41 | O41: 17 | P41: 2
A42: 42 | B42: 51 | C42: 2.256381378 | D42: =[2]!XLSTAT_PDFStudent(B42,23) -> 8.11631738e-26 | E42: 42 | F42: 51 | G42: -4.227480927 | H42: =[2]!XLSTAT_PDFStudent(F42,23) -> 8.11631738e-26 | I42: 42 | K42: -3.689660035 | L42: =[2]!XLSTAT_PDFStudent(K42,23) -> 0.001490105625 | M42: 42 | O42: 18 | P42: 2
A43: 43 | B43: 51 | C43: 2.265767567 | D43: =[2]!XLSTAT_PDFStudent(B43,23) -> 8.11631738e-26 | E43: 43 | F43: 51 | G43: -4.218094738 | H43: =[2]!XLSTAT_PDFStudent(F43,23) -> 8.11631738e-26 | I43: 43 | K43: -3.671963824 | L43: =[2]!XLSTAT_PDFStudent(K43,23) -> 0.001555224177 | M43: 43 | O43: 19 | P43: 2
A44: 44 | B44: 2.265767567 | C44: 2.265767567 | D44: =[2]!XLSTAT_PDFStudent(B44,23) -> 0.03517242163 | E44: 44 | F44: -4.218094738 | G44: -4.218094738 | H44: =[2]!XLSTAT_PDFStudent(F44,23) -> 0.0004073649958 | I44: 44 | K44: -3.654267613 | L44: =[2]!XLSTAT_PDFStudent(K44,23) -> 0.001623101228 | M44: 44 | O44: 20 | P44: 2
A45: 45 | B45: 2.275153755 | C45: 2.275153755 | D45: =[2]!XLSTAT_PDFStudent(B45,23) -> 0.03453924863 | E45: 45 | F45: -4.20870855 | G45: -4.20870855 | H45: =[2]!XLSTAT_PDFStudent(F45,23) -> 0.0004169640242 | I45: 45 | K45: -3.636571402 | L45: =[2]!XLSTAT_PDFStudent(K45,23) -> 0.001693847817 | M45: 45 | O45: 21 | P45: 2
A46: 46 | B46: 51 | C46: 2.275153755 | D46: =[2]!XLSTAT_PDFStudent(B46,23) -> 8.11631738e-26 | E46: 46 | F46: 51 | G46: -4.20870855 | H46: =[2]!XLSTAT_PDFStudent(F46,23) -> 8.11631738e-26 | I46: 46 | K46: -3.618875191 | L46: =[2]!XLSTAT_PDFStudent(K46,23) -> 0.00176757909 | M46: 46 | O46: 22 | P46: 2
A47: 47 | B47: 51 | C47: 2.284539944 | D47: =[2]!XLSTAT_PDFStudent(B47,23) -> 8.11631738e-26 | E47: 47 | F47: 51 | G47: -4.199322362 | H47: =[2]!XLSTAT_PDFStudent(F47,23) -> 8.11631738e-26 | I47: 47 | K47: -3.601178979 | L47: =[2]!XLSTAT_PDFStudent(K47,23) -> 0.001844414431 | M47: 47 | O47: 23 | P47: 2
A48: 48 | B48: 2.284539944 | C48: 2.284539944 | D48: =[2]!XLSTAT_PDFStudent(B48,23) -> 0.03391586399 | E48: 48 | F48: -4.199322362 | G48: -4.199322362 | H48: =[2]!XLSTAT_PDFStudent(F48,23) -> 0.0004267863631 | I48: 48 | K48: -3.583482768 | L48: =[2]!XLSTAT_PDFStudent(K48,23) -> 0.00192447759 | M48: 48 | O48: 24 | P48: 2
A49: 49 | B49: 2.293926132 | C49: 2.293926132 | D49: =[2]!XLSTAT_PDFStudent(B49,23) -> 0.03330215824 | E49: 49 | F49: -4.189936173 | G49: -4.189936173 | H49: =[2]!XLSTAT_PDFStudent(F49,23) -> 0.0004368370832 | I49: 49 | K49: -3.565786557 | L49: =[2]!XLSTAT_PDFStudent(K49,23) -> 0.002007896822 | M49: 49 | O49: 1 | P49: 3
A50: 50 | B50: 51 | C50: 2.293926132 | D50: =[2]!XLSTAT_PDFStudent(B50,23) -> 8.11631738e-26 | E50: 50 | F50: 51 | G50: -4.189936173 | H50: =[2]!XLSTAT_PDFStudent(F50,23) -> 8.11631738e-26 | I50: 50 | K50: -3.548090346 | L50: =[2]!XLSTAT_PDFStudent(K50,23) -> 0.002094805026 | M50: 50 | O50: 2 | P50: 3
A51: 51 | B51: 51 | C51: 2.30331232 | D51: =[2]!XLSTAT_PDFStudent(B51,23) -> 8.11631738e-26 | E51: 51 | F51: 51 | G51: -4.180549985 | H51: =[2]!XLSTAT_PDFStudent(F51,23) -> 8.11631738e-26 | I51: 51 | K51: -3.530394135 | L51: =[2]!XLSTAT_PDFStudent(K51,23) -> 0.002185339883 | M51: 51 | O51: 3 | P51: 3
A52: 52 | B52: 2.30331232 | C52: 2.30331232 | D52: =[2]!XLSTAT_PDFStudent(B52,23) -> 0.03269802208 | E52: 52 | F52: -4.180549985 | G52: -4.180549985 | H52: =[2]!XLSTAT_PDFStudent(F52,23) -> 0.000447121366 | I52: 52 | K52: -3.512697923 | L52: =[2]!XLSTAT_PDFStudent(K52,23) -> 0.002279644001 | M52: 52 | O52: 4 | P52: 3
A53: 53 | B53: 2.312698509 | C53: 2.312698509 | D53: =[2]!XLSTAT_PDFStudent(B53,23) -> 0.03210334639 | E53: 53 | F53: -4.171163796 | G53: -4.171163796 | H53: =[2]!XLSTAT_PDFStudent(F53,23) -> 0.0004576445056 | I53: 53 | K53: -3.495001712 | L53: =[2]!XLSTAT_PDFStudent(K53,23) -> 0.002377865062 | M53: 53 | O53: 5 | P53: 3
A54: 54 | B54: 51 | C54: 2.312698509 | D54: =[2]!XLSTAT_PDFStudent(B54,23) -> 8.11631738e-26 | E54: 54 | F54: 51 | G54: -4.171163796 | H54: =[2]!XLSTAT_PDFStudent(F54,23) -> 8.11631738e-26 | I54: 54 | K54: -3.477305501 | L54: =[2]!XLSTAT_PDFStudent(K54,23) -> 0.002480155972 | M54: 54 | O54: 6 | P54: 3
A55: 55 | B55: 51 | C55: 2.322084697 | D55: =[2]!XLSTAT_PDFStudent(B55,23) -> 8.11631738e-26 | E55: 55 | F55: 51 | G55: -4.161777608 | H55: =[2]!XLSTAT_PDFStudent(F55,23) -> 8.11631738e-26 | I55: 55 | K55: -3.45960929 | L55: =[2]!XLSTAT_PDFStudent(K55,23) -> 0.002586675007 | M55: 55 | O55: 7 | P55: 3
A56: 56 | B56: 2.322084697 | C56: 2.322084697 | D56: =[2]!XLSTAT_PDFStudent(B56,23) -> 0.03151802222 | E56: 56 | F56: -4.161777608 | G56: -4.161777608 | H56: =[2]!XLSTAT_PDFStudent(F56,23) -> 0.0004684119112 | I56: 56 | K56: -3.441913079 | L56: =[2]!XLSTAT_PDFStudent(K56,23) -> 0.002697585975 | M56: 56 | O56: 8 | P56: 3
A57: 57 | B57: 2.331470885 | C57: 2.331470885 | D57: =[2]!XLSTAT_PDFStudent(B57,23) -> 0.03094194088 | E57: 57 | F57: -4.152391419 | G57: -4.152391419 | H57: =[2]!XLSTAT_PDFStudent(F57,23) -> 0.0004794291097 | I57: 57 | K57: -3.424216868 | L57: =[2]!XLSTAT_PDFStudent(K57,23) -> 0.002813058363 | M57: 57 | O57: 9 | P57: 3
A58: 58 | B58: 51 | C58: 2.331470885 | D58: =[2]!XLSTAT_PDFStudent(B58,23) -> 8.11631738e-26 | E58: 58 | F58: 51 | G58: -4.152391419 | H58: =[2]!XLSTAT_PDFStudent(F58,23) -> 8.11631738e-26 | I58: 58 | K58: -3.406520656 | L58: =[2]!XLSTAT_PDFStudent(K58,23) -> 0.002933267504 | M58: 58 | O58: 10 | P58: 3
A59: 59 | B59: 51 | C59: 2.340857074 | D59: =[2]!XLSTAT_PDFStudent(B59,23) -> 8.11631738e-26 | E59: 59 | F59: 51 | G59: -4.143005231 | H59: =[2]!XLSTAT_PDFStudent(F59,23) -> 8.11631738e-26 | I59: 59 | K59: -3.388824445 | L59: =[2]!XLSTAT_PDFStudent(K59,23) -> 0.003058394731 | M59: 59 | O59: 11 | P59: 3
A60: 60 | B60: 2.340857074 | C60: 2.340857074 | D60: =[2]!XLSTAT_PDFStudent(B60,23) -> 0.03037499392 | E60: 60 | F60: -4.143005231 | G60: -4.143005231 | H60: =[2]!XLSTAT_PDFStudent(F60,23) -> 0.0004907017473 | I60: 60 | K60: -3.371128234 | L60: =[2]!XLSTAT_PDFStudent(K60,23) -> 0.003188627541 | M60: 60 | O60: 12 | P60: 3
A61: 61 | B61: 2.350243262 | C61: 2.350243262 | D61: =[2]!XLSTAT_PDFStudent(B61,23) -> 0.02981707321 | E61: 61 | F61: -4.133619043 | G61: -4.133619043 | H61: =[2]!XLSTAT_PDFStudent(F61,23) -> 0.0005022355927 | I61: 61 | K61: -3.353432023 | L61: =[2]!XLSTAT_PDFStudent(K61,23) -> 0.003324159764 | M61: 61 | O61: 13 | P61: 3
A62: 62 | B62: 51 | C62: 2.350243262 | D62: =[2]!XLSTAT_PDFStudent(B62,23) -> 8.11631738e-26 | E62: 62 | F62: 51 | G62: -4.133619043 | H62: =[2]!XLSTAT_PDFStudent(F62,23) -> 8.11631738e-26 | I62: 62 | K62: -3.335735812 | L62: =[2]!XLSTAT_PDFStudent(K62,23) -> 0.003465191721 | M62: 62 | O62: 14 | P62: 3
A63: 63 | B63: 51 | C63: 2.359629451 | D63: =[2]!XLSTAT_PDFStudent(B63,23) -> 8.11631738e-26 | E63: 63 | F63: 51 | G63: -4.124232854 | H63: =[2]!XLSTAT_PDFStudent(F63,23) -> 8.11631738e-26 | I63: 63 | K63: -3.3180396 | L63: =[2]!XLSTAT_PDFStudent(K63,23) -> 0.003611930399 | M63: 63 | O63: 15 | P63: 3
A64: 64 | B64: 2.359629451 | C64: 2.359629451 | D64: =[2]!XLSTAT_PDFStudent(B64,23) -> 0.02926807092 | E64: 64 | F64: -4.124232854 | G64: -4.124232854 | H64: =[2]!XLSTAT_PDFStudent(F64,23) -> 0.0005140365394 | I64: 64 | K64: -3.300343389 | L64: =[2]!XLSTAT_PDFStudent(K64,23) -> 0.003764589615 | M64: 64 | O64: 16 | P64: 3
A65: 65 | B65: =IF(-1^(INT(A65/2)+2)>0,2.0686576103+2*INT(A65/2-1/2)*0.0046930942,51) -> 2.369015639 | C65: =2.0686576103+2*INT(A65/2-1/2)*0.0046930942 -> 2.369015639 | D65: =[2]!XLSTAT_PDFStudent(B65,23) -> 0.02872787957 | E65: 65 | F65: =IF(-1^(INT(E65/2)+2)>0,-4.4152046947+2*INT(E65/2-1/2)*0.0046930942,51) -> -4.114846666 | G65: =-4.4152046947+2*INT(E65/2-1/2)*0.0046930942 -> -4.114846666 | H65: =[2]!XLSTAT_PDFStudent(F65,23) -> 0.0005261106078 | I65: 65 | K65: =-4.4152046947+(I65-1)*0.0176962112 -> -3.282647178 | L65: =[2]!XLSTAT_PDFStudent(K65,23) -> 0.003923390189 | M65: 65 | O65: =M65-24*INT((-1/2+M65)/24) -> 17 | P65: =1+INT((M65-1/2)/24) -> 3
A66: 66 | B66: 51 | C66: 2.369015639 | D66: =[2]!XLSTAT_PDFStudent(B66,23) -> 8.11631738e-26 | E66: 66 | F66: 51 | G66: -4.114846666 | H66: =[2]!XLSTAT_PDFStudent(F66,23) -> 8.11631738e-26 | I66: 66 | K66: -3.264950967 | L66: =[2]!XLSTAT_PDFStudent(K66,23) -> 0.004088560113 | M66: 66 | O66: 18 | P66: 3
A67: 67 | B67: 51 | C67: 2.378401827 | D67: =[2]!XLSTAT_PDFStudent(B67,23) -> 8.11631738e-26 | E67: 67 | F67: 51 | G67: -4.105460477 | H67: =[2]!XLSTAT_PDFStudent(F67,23) -> 8.11631738e-26 | I67: 67 | K67: -3.247254756 | L67: =[2]!XLSTAT_PDFStudent(K67,23) -> 0.004260334727 | M67: 67 | O67: 19 | P67: 3
A68: 68 | B68: 2.378401827 | C68: 2.378401827 | D68: =[2]!XLSTAT_PDFStudent(B68,23) -> 0.02819639207 | E68: 68 | F68: -4.105460477 | G68: -4.105460477 | H68: =[2]!XLSTAT_PDFStudent(F68,23) -> 0.000538463948 | I68: 68 | K68: -3.229558544 | L68: =[2]!XLSTAT_PDFStudent(K68,23) -> 0.004438956885 | M68: 68 | O68: 20 | P68: 3
A69: 69 | B69: 2.387788016 | C69: 2.387788016 | D69: =[2]!XLSTAT_PDFStudent(B69,23) -> 0.02767350171 | E69: 69 | F69: -4.096074289 | G69: -4.096074289 | H69: =[2]!XLSTAT_PDFStudent(F69,23) -> 0.0005511028427 | I69: 69 | K69: -3.211862333 | L69: =[2]!XLSTAT_PDFStudent(K69,23) -> 0.004624677134 | M69: 69 | O69: 21 | P69: 3
A70: 70 | B70: 51 | C70: 2.387788016 | D70: =[2]!XLSTAT_PDFStudent(B70,23) -> 8.11631738e-26 | E70: 70 | F70: 51 | G70: -4.096074289 | H70: =[2]!XLSTAT_PDFStudent(F70,23) -> 8.11631738e-26 | I70: 70 | K70: -3.194166122 | L70: =[2]!XLSTAT_PDFStudent(K70,23) -> 0.004817753884 | M70: 70 | O70: 22 | P70: 3
A71: 71 | B71: 51 | C71: 2.397174204 | D71: =[2]!XLSTAT_PDFStudent(B71,23) -> 8.11631738e-26 | E71: 71 | F71: 51 | G71: -4.086688101 | H71: =[2]!XLSTAT_PDFStudent(F71,23) -> 8.11631738e-26 | I71: 71 | K71: -3.176469911 | L71: =[2]!XLSTAT_PDFStudent(K71,23) -> 0.005018453581 | M71: 71 | O71: 23 | P71: 3
A72: 72 | B72: 2.397174204 | C72: 2.397174204 | D72: =[2]!XLSTAT_PDFStudent(B72,23) -> 0.02715910224 | E72: 72 | F72: -4.086688101 | G72: -4.086688101 | H72: =[2]!XLSTAT_PDFStudent(F72,23) -> 0.0005640337093 | I72: 72 | K72: -3.1587737 | L72: =[2]!XLSTAT_PDFStudent(K72,23) -> 0.005227050878 | M72: 72 | O72: 24 | P72: 3
A73: 73 | B73: 2.406560393 | C73: 2.406560393 | D73: =[2]!XLSTAT_PDFStudent(B73,23) -> 0.02665308783 | E73: 73 | F73: -4.077301912 | G73: -4.077301912 | H73: =[2]!XLSTAT_PDFStudent(F73,23) -> 0.0005772631028 | I73: 73 | K73: -3.141077488 | L73: =[2]!XLSTAT_PDFStudent(K73,23) -> 0.005443828806 | M73: 73 | O73: 1 | P73: 4
A74: 74 | B74: 51 | C74: 2.406560393 | D74: =[2]!XLSTAT_PDFStudent(B74,23) -> 8.11631738e-26 | E74: 74 | F74: 51 | G74: -4.077301912 | H74: =[2]!XLSTAT_PDFStudent(F74,23) -> 8.11631738e-26 | I74: 74 | K74: -3.123381277 | L74: =[2]!XLSTAT_PDFStudent(K74,23) -> 0.005669078948 | M74: 74 | O74: 2 | P74: 4
A75: 75 | B75: 51 | C75: 2.415946581 | D75: =[2]!XLSTAT_PDFStudent(B75,23) -> 8.11631738e-26 | E75: 75 | F75: 51 | G75: -4.067915724 | H75: =[2]!XLSTAT_PDFStudent(F75,23) -> 8.11631738e-26 | I75: 75 | K75: -3.105685066 | L75: =[2]!XLSTAT_PDFStudent(K75,23) -> 0.0059031016 | M75: 75 | O75: 3 | P75: 4
A76: 76 | B76: 2.415946581 | C76: 2.415946581 | D76: =[2]!XLSTAT_PDFStudent(B76,23) -> 0.02615535314 | E76: 76 | F76: -4.067915724 | G76: -4.067915724 | H76: =[2]!XLSTAT_PDFStudent(F76,23) -> 0.0005907977188 | I76: 76 | K76: -3.087988855 | L76: =[2]!XLSTAT_PDFStudent(K76,23) -> 0.006146205943 | M76: 76 | O76: 4 | P76: 4
A77: 77 | B77: 2.425332769 | C77: 2.425332769 | D77: =[2]!XLSTAT_PDFStudent(B77,23) -> 0.02566579332 | E77: 77 | F77: -4.058529535 | G77: -4.058529535 | H77: =[2]!XLSTAT_PDFStudent(F77,23) -> 0.0006046443959 | I77: 77 | K77: -3.070292644 | L77: =[2]!XLSTAT_PDFStudent(K77,23) -> 0.006398710204 | M77: 77 | O77: 5 | P77: 4
A78: 78 | B78: 51 | C78: 2.425332769 | D78: =[2]!XLSTAT_PDFStudent(B78,23) -> 8.11631738e-26 | E78: 78 | F78: 51 | G78: -4.058529535 | H78: =[2]!XLSTAT_PDFStudent(F78,23) -> 8.11631738e-26 | I78: 78 | K78: -3.052596432 | L78: =[2]!XLSTAT_PDFStudent(K78,23) -> 0.006660941818 | M78: 78 | O78: 6 | P78: 4
A79: 79 | B79: 51 | C79: 2.434718958 | D79: =[2]!XLSTAT_PDFStudent(B79,23) -> 8.11631738e-26 | E79: 79 | F79: 51 | G79: -4.049143347 | H79: =[2]!XLSTAT_PDFStudent(F79,23) -> 8.11631738e-26 | I79: 79 | K79: -3.034900221 | L79: =[2]!XLSTAT_PDFStudent(K79,23) -> 0.006933237584 | M79: 79 | O79: 7 | P79: 4
A80: 80 | B80: 2.434718958 | C80: 2.434718958 | D80: =[2]!XLSTAT_PDFStudent(B80,23) -> 0.02518430405 | E80: 80 | F80: -4.049143347 | G80: -4.049143347 | H80: =[2]!XLSTAT_PDFStudent(F80,23) -> 0.0006188101184 | I80: 80 | K80: -3.01720401 | L80: =[2]!XLSTAT_PDFStudent(K80,23) -> 0.00721594382 | M80: 80 | O80: 8 | P80: 4
A81: 81 | B81: 2.444105146 | C81: 2.444105146 | D81: =[2]!XLSTAT_PDFStudent(B81,23) -> 0.02471078153 | E81: 81 | F81: -4.039757159 | G81: -4.039757159 | H81: =[2]!XLSTAT_PDFStudent(F81,23) -> 0.0006333020199 | I81: 81 | K81: -2.999507799 | L81: =[2]!XLSTAT_PDFStudent(K81,23) -> 0.007509416513 | M81: 81 | O81: 9 | P81: 4
A82: 82 | B82: 51 | C82: 2.444105146 | D82: =[2]!XLSTAT_PDFStudent(B82,23) -> 8.11631738e-26 | E82: 82 | F82: 51 | G82: -4.039757159 | H82: =[2]!XLSTAT_PDFStudent(F82,23) -> 8.11631738e-26 | I82: 82 | K82: -2.981811588 | L82: =[2]!XLSTAT_PDFStudent(K82,23) -> 0.007814021463 | M82: 82 | O82: 10 | P82: 4
A83: 83 | B83: 51 | C83: 2.453491335 | D83: =[2]!XLSTAT_PDFStudent(B83,23) -> 8.11631738e-26 | E83: 83 | F83: 51 | G83: -4.03037097 | H83: =[2]!XLSTAT_PDFStudent(F83,23) -> 8.11631738e-26 | I83: 83 | K83: -2.964115376 | L83: =[2]!XLSTAT_PDFStudent(K83,23) -> 0.008130134421 | M83: 83 | O83: 11 | P83: 4
A84: 84 | B84: 2.453491335 | C84: 2.453491335 | D84: =[2]!XLSTAT_PDFStudent(B84,23) -> 0.02424512255 | E84: 84 | F84: -4.03037097 | G84: -4.03037097 | H84: =[2]!XLSTAT_PDFStudent(F84,23) -> 0.0006481273853 | I84: 84 | K84: -2.946419165 | L84: =[2]!XLSTAT_PDFStudent(K84,23) -> 0.008458141223 | M84: 84 | O84: 12 | P84: 4
A85: 85 | B85: 2.462877523 | C85: 2.462877523 | D85: =[2]!XLSTAT_PDFStudent(B85,23) -> 0.02378722445 | E85: 85 | F85: -4.020984782 | G85: -4.020984782 | H85: =[2]!XLSTAT_PDFStudent(F85,23) -> 0.0006632936545 | I85: 85 | K85: -2.928722954 | L85: =[2]!XLSTAT_PDFStudent(K85,23) -> 0.008798437919 | M85: 85 | O85: 13 | P85: 4
A86: 86 | B86: 51 | C86: 2.462877523 | D86: =[2]!XLSTAT_PDFStudent(B86,23) -> 8.11631738e-26 | E86: 86 | F86: 51 | G86: -4.020984782 | H86: =[2]!XLSTAT_PDFStudent(F86,23) -> 8.11631738e-26 | I86: 86 | K86: -2.911026743 | L86: =[2]!XLSTAT_PDFStudent(K86,23) -> 0.00915143089 | M86: 86 | O86: 14 | P86: 4
A87: 87 | B87: 51 | C87: 2.472263711 | D87: =[2]!XLSTAT_PDFStudent(B87,23) -> 8.11631738e-26 | E87: 87 | F87: 51 | G87: -4.011598593 | H87: =[2]!XLSTAT_PDFStudent(F87,23) -> 8.11631738e-26 | I87: 87 | K87: -2.893330532 | L87: =[2]!XLSTAT_PDFStudent(K87,23) -> 0.00951753696 | M87: 87 | O87: 15 | P87: 4
A88: 88 | B88: 2.472263711 | C88: 2.472263711 | D88: =[2]!XLSTAT_PDFStudent(B88,23) -> 0.02333698519 | E88: 88 | F88: -4.011598593 | G88: -4.011598593 | H88: =[2]!XLSTAT_PDFStudent(F88,23) -> 0.0006788084251 | I88: 88 | K88: -2.87563432 | L88: =[2]!XLSTAT_PDFStudent(K88,23) -> 0.009897183501 | M88: 88 | O88: 16 | P88: 4
A89: 89 | B89: 2.4816499 | C89: 2.4816499 | D89: =[2]!XLSTAT_PDFStudent(B89,23) -> 0.02289430334 | E89: 89 | F89: -4.002212405 | G89: -4.002212405 | H89: =[2]!XLSTAT_PDFStudent(F89,23) -> 0.0006946794553 | I89: 89 | K89: -2.857938109 | L89: =[2]!XLSTAT_PDFStudent(K89,23) -> 0.01029080852 | M89: 89 | O89: 17 | P89: 4
A90: 90 | B90: 51 | C90: 2.4816499 | D90: =[2]!XLSTAT_PDFStudent(B90,23) -> 8.11631738e-26 | E90: 90 | F90: 51 | G90: -4.002212405 | H90: =[2]!XLSTAT_PDFStudent(F90,23) -> 8.11631738e-26 | I90: 90 | K90: -2.840241898 | L90: =[2]!XLSTAT_PDFStudent(K90,23) -> 0.01069886077 | M90: 90 | O90: 18 | P90: 4
A91: 91 | B91: 51 | C91: 2.491036088 | D91: =[2]!XLSTAT_PDFStudent(B91,23) -> 8.11631738e-26 | E91: 91 | F91: 51 | G91: -3.992826217 | H91: =[2]!XLSTAT_PDFStudent(F91,23) -> 8.11631738e-26 | I91: 91 | K91: -2.822545687 | L91: =[2]!XLSTAT_PDFStudent(K91,23) -> 0.01112179977 | M91: 91 | O91: 19 | P91: 4
A92: 92 | B92: 2.491036088 | C92: 2.491036088 | D92: =[2]!XLSTAT_PDFStudent(B92,23) -> 0.0224590781 | E92: 92 | F92: -3.992826217 | G92: -3.992826217 | H92: =[2]!XLSTAT_PDFStudent(F92,23) -> 0.0007109146673 | I92: 92 | K92: -2.804849476 | L92: =[2]!XLSTAT_PDFStudent(K92,23) -> 0.01156009592 | M92: 92 | O92: 20 | P92: 4
A93: 93 | B93: 2.500422277 | C93: 2.500422277 | D93: =[2]!XLSTAT_PDFStudent(B93,23) -> 0.02203120933 | E93: 93 | F93: -3.983440028 | G93: -3.983440028 | H93: =[2]!XLSTAT_PDFStudent(F93,23) -> 0.0007275221506 | I93: 93 | K93: -2.787153264 | L93: =[2]!XLSTAT_PDFStudent(K93,23) -> 0.01201423053 | M93: 93 | O93: 21 | P93: 4
A94: 94 | B94: 51 | C94: 2.500422277 | D94: =[2]!XLSTAT_PDFStudent(B94,23) -> 8.11631738e-26 | E94: 94 | F94: 51 | G94: -3.983440028 | H94: =[2]!XLSTAT_PDFStudent(F94,23) -> 8.11631738e-26 | I94: 94 | K94: -2.769457053 | L94: =[2]!XLSTAT_PDFStudent(K94,23) -> 0.01248469586 | M94: 94 | O94: 22 | P94: 4
A95: 95 | B95: 51 | C95: 2.509808465 | D95: =[2]!XLSTAT_PDFStudent(B95,23) -> 8.11631738e-26 | E95: 95 | F95: 51 | G95: -3.97405384 | H95: =[2]!XLSTAT_PDFStudent(F95,23) -> 8.11631738e-26 | I95: 95 | K95: -2.751760842 | L95: =[2]!XLSTAT_PDFStudent(K95,23) -> 0.01297199513 | M95: 95 | O95: 23 | P95: 4
A96: 96 | B96: 2.509808465 | C96: 2.509808465 | D96: =[2]!XLSTAT_PDFStudent(B96,23) -> 0.02161059754 | E96: 96 | F96: -3.97405384 | G96: -3.97405384 | H96: =[2]!XLSTAT_PDFStudent(F96,23) -> 0.0007445101647 | I96: 96 | K96: -2.734064631 | L96: =[2]!XLSTAT_PDFStudent(K96,23) -> 0.01347664254 | M96: 96 | O96: 24 | P96: 4
A97: 97 | B97: 2.519194653 | C97: 2.519194653 | D97: =[2]!XLSTAT_PDFStudent(B97,23) -> 0.02119714394 | E97: 97 | F97: -3.964667652 | G97: -3.964667652 | H97: =[2]!XLSTAT_PDFStudent(F97,23) -> 0.0007618871428 | I97: 97 | K97: -2.71636842 | L97: =[2]!XLSTAT_PDFStudent(K97,23) -> 0.01399916326 | M97: 97 | O97: 1 | P97: 5
A98: 98 | B98: 51 | C98: 2.519194653 | D98: =[2]!XLSTAT_PDFStudent(B98,23) -> 8.11631738e-26 | E98: 98 | F98: 51 | G98: -3.964667652 | H98: =[2]!XLSTAT_PDFStudent(F98,23) -> 8.11631738e-26 | I98: 98 | K98: -2.698672208 | L98: =[2]!XLSTAT_PDFStudent(K98,23) -> 0.01454009342 | M98: 98 | O98: 2 | P98: 5
A99: 99 | B99: 51 | C99: 2.528580842 | D99: =[2]!XLSTAT_PDFStudent(B99,23) -> 8.11631738e-26 | E99: 99 | F99: 51 | G99: -3.955281463 | H99: =[2]!XLSTAT_PDFStudent(F99,23) -> 8.11631738e-26 | I99: 99 | K99: -2.680975997 | L99: =[2]!XLSTAT_PDFStudent(K99,23) -> 0.01509998003 | M99: 99 | O99: 3 | P99: 5
A100: 100 | B100: 2.528580842 | C100: 2.528580842 | D100: =[2]!XLSTAT_PDFStudent(B100,23) -> 0.02079075043 | E100: 100 | F100: -3.955281463 | G100: -3.955281463 | H100: =[2]!XLSTAT_PDFStudent(F100,23) -> 0.000779661695 | I100: 100 | K100: -2.663279786 | L100: =[2]!XLSTAT_PDFStudent(K100,23) -> 0.01567938098 | M100: 100 | O100: 4 | P100: 5
A101: 101 | B101: 2.53796703 | C101: 2.53796703 | D101: =[2]!XLSTAT_PDFStudent(B101,23) -> 0.02039131961 | E101: 101 | F101: -3.945895275 | G101: -3.945895275 | H101: =[2]!XLSTAT_PDFStudent(F101,23) -> 0.0007978426117 | I101: 101 | K101: -2.645583575 | L101: =[2]!XLSTAT_PDFStudent(K101,23) -> 0.01627886488 | M101: 101 | O101: 5 | P101: 5
A102: 102 | B102: 51 | C102: 2.53796703 | D102: =[2]!XLSTAT_PDFStudent(B102,23) -> 8.11631738e-26 | E102: 102 | F102: 51 | G102: -3.945895275 | H102: =[2]!XLSTAT_PDFStudent(F102,23) -> 8.11631738e-26 | I102: 102 | K102: -2.627887364 | L102: =[2]!XLSTAT_PDFStudent(K102,23) -> 0.01689901105 | M102: 102 | O102: 6 | P102: 5
A103: 103 | B103: 51 | C103: 2.547353219 | D103: =[2]!XLSTAT_PDFStudent(B103,23) -> 8.11631738e-26 | E103: 103 | F103: 51 | G103: -3.936509086 | H103: =[2]!XLSTAT_PDFStudent(F103,23) -> 8.11631738e-26 | I103: 103 | K103: -2.610191152 | L103: =[2]!XLSTAT_PDFStudent(K103,23) -> 0.01754040931 | M103: 103 | O103: 7 | P103: 5
A104: 104 | B104: 2.547353219 | C104: 2.547353219 | D104: =[2]!XLSTAT_PDFStudent(B104,23) -> 0.01999875482 | E104: 104 | F104: -3.936509086 | G104: -3.936509086 | H104: =[2]!XLSTAT_PDFStudent(F104,23) -> 0.0008164388671 | I104: 104 | K104: -2.592494941 | L104: =[2]!XLSTAT_PDFStudent(K104,23) -> 0.01820365991 | M104: 104 | O104: 8 | P104: 5
A105: 105 | B105: 2.556739407 | C105: 2.556739407 | D105: =[2]!XLSTAT_PDFStudent(B105,23) -> 0.01961296011 | E105: 105 | F105: -3.927122898 | G105: -3.927122898 | H105: =[2]!XLSTAT_PDFStudent(F105,23) -> 0.0008354596223 | I105: 105 | K105: -2.57479873 | L105: =[2]!XLSTAT_PDFStudent(K105,23) -> 0.01888937333 | M105: 105 | O105: 9 | P105: 5
A106: 106 | B106: 51 | C106: 2.556739407 | D106: =[2]!XLSTAT_PDFStudent(B106,23) -> 8.11631738e-26 | E106: 106 | F106: 51 | G106: -3.927122898 | H106: =[2]!XLSTAT_PDFStudent(F106,23) -> 8.11631738e-26 | I106: 106 | K106: -2.557102519 | L106: =[2]!XLSTAT_PDFStudent(K106,23) -> 0.01959817007 | M106: 106 | O106: 10 | P106: 5
A107: 107 | B107: 51 | C107: 2.566125595 | D107: =[2]!XLSTAT_PDFStudent(B107,23) -> 8.11631738e-26 | E107: 107 | F107: 51 | G107: -3.917736709 | H107: =[2]!XLSTAT_PDFStudent(F107,23) -> 8.11631738e-26 | I107: 107 | K107: -2.539406308 | L107: =[2]!XLSTAT_PDFStudent(K107,23) -> 0.02033068047 | M107: 107 | O107: 11 | P107: 5
A108: 108 | B108: 2.566125595 | C108: 2.566125595 | D108: =[2]!XLSTAT_PDFStudent(B108,23) -> 0.0192338403 | E108: 108 | F108: -3.917736709 | G108: -3.917736709 | H108: =[2]!XLSTAT_PDFStudent(F108,23) -> 0.0008549142296 | I108: 108 | K108: -2.521710096 | L108: =[2]!XLSTAT_PDFStudent(K108,23) -> 0.02108754445 | M108: 108 | O108: 12 | P108: 5
A109: 109 | B109: 2.575511784 | C109: 2.575511784 | D109: =[2]!XLSTAT_PDFStudent(B109,23) -> 0.01886130095 | E109: 109 | F109: -3.908350521 | G109: -3.908350521 | H109: =[2]!XLSTAT_PDFStudent(F109,23) -> 0.0008748122352 | I109: 109 | K109: -2.504013885 | L109: =[2]!XLSTAT_PDFStudent(K109,23) -> 0.02186941121 | M109: 109 | O109: 13 | P109: 5
A110: 110 | B110: 51 | C110: 2.575511784 | D110: =[2]!XLSTAT_PDFStudent(B110,23) -> 8.11631738e-26 | E110: 110 | F110: 51 | G110: -3.908350521 | H110: =[2]!XLSTAT_PDFStudent(F110,23) -> 8.11631738e-26 | I110: 110 | K110: -2.486317674 | L110: =[2]!XLSTAT_PDFStudent(K110,23) -> 0.022676939 | M110: 110 | O110: 14 | P110: 5
A111: 111 | B111: 51 | C111: 2.584897972 | D111: =[2]!XLSTAT_PDFStudent(B111,23) -> 8.11631738e-26 | E111: 111 | F111: 51 | G111: -3.898964333 | H111: =[2]!XLSTAT_PDFStudent(F111,23) -> 8.11631738e-26 | I111: 111 | K111: -2.468621463 | L111: =[2]!XLSTAT_PDFStudent(K111,23) -> 0.02351079471 | M111: 111 | O111: 15 | P111: 5
A112: 112 | B112: 2.584897972 | C112: 2.584897972 | D112: =[2]!XLSTAT_PDFStudent(B112,23) -> 0.01849524842 | E112: 112 | F112: -3.898964333 | G112: -3.898964333 | H112: =[2]!XLSTAT_PDFStudent(F112,23) -> 0.0008951633837 | I112: 112 | K112: -2.450925252 | L112: =[2]!XLSTAT_PDFStudent(K112,23) -> 0.02437165356 | M112: 112 | O112: 16 | P112: 5
A113: 113 | B113: 2.594284161 | C113: 2.594284161 | D113: =[2]!XLSTAT_PDFStudent(B113,23) -> 0.01813558981 | E113: 113 | F113: -3.889578144 | G113: -3.889578144 | H113: =[2]!XLSTAT_PDFStudent(F113,23) -> 0.000915977621 | I113: 113 | K113: -2.43322904 | L113: =[2]!XLSTAT_PDFStudent(K113,23) -> 0.02526019869 | M113: 113 | O113: 17 | P113: 5
A114: 114 | B114: 51 | C114: 2.594284161 | D114: =[2]!XLSTAT_PDFStudent(B114,23) -> 8.11631738e-26 | E114: 114 | F114: 51 | G114: -3.889578144 | H114: =[2]!XLSTAT_PDFStudent(F114,23) -> 8.11631738e-26 | I114: 114 | K114: -2.415532829 | L114: =[2]!XLSTAT_PDFStudent(K114,23) -> 0.02617712075 | M114: 114 | O114: 18 | P114: 5
A115: 115 | B115: 51 | C115: 2.603670349 | D115: =[2]!XLSTAT_PDFStudent(B115,23) -> 8.11631738e-26 | E115: 115 | F115: 51 | G115: -3.880191956 | H115: =[2]!XLSTAT_PDFStudent(F115,23) -> 8.11631738e-26 | I115: 115 | K115: -2.397836618 | L115: =[2]!XLSTAT_PDFStudent(K115,23) -> 0.02712311741 | M115: 115 | O115: 19 | P115: 5
A116: 116 | B116: 2.603670349 | C116: 2.603670349 | D116: =[2]!XLSTAT_PDFStudent(B116,23) -> 0.01778223302 | E116: 116 | F116: -3.880191956 | G116: -3.880191956 | H116: =[2]!XLSTAT_PDFStudent(F116,23) -> 0.0009372650989 | I116: 116 | K116: -2.380140407 | L116: =[2]!XLSTAT_PDFStudent(K116,23) -> 0.02809889289 | M116: 116 | O116: 20 | P116: 5
A117: 117 | B117: 2.613056537 | C117: 2.613056537 | D117: =[2]!XLSTAT_PDFStudent(B117,23) -> 0.01743508676 | E117: 117 | F117: -3.870805767 | G117: -3.870805767 | H117: =[2]!XLSTAT_PDFStudent(F117,23) -> 0.0009590361782 | I117: 117 | K117: -2.362444196 | L117: =[2]!XLSTAT_PDFStudent(K117,23) -> 0.02910515743 | M117: 117 | O117: 21 | P117: 5
A118: 118 | B118: 51 | C118: 2.613056537 | D118: =[2]!XLSTAT_PDFStudent(B118,23) -> 8.11631738e-26 | E118: 118 | F118: 51 | G118: -3.870805767 | H118: =[2]!XLSTAT_PDFStudent(F118,23) -> 8.11631738e-26 | I118: 118 | K118: -2.344747984 | L118: =[2]!XLSTAT_PDFStudent(K118,23) -> 0.03014262672 | M118: 118 | O118: 22 | P118: 5
A119: 119 | B119: 51 | C119: 2.622442726 | D119: =[2]!XLSTAT_PDFStudent(B119,23) -> 8.11631738e-26 | E119: 119 | F119: 51 | G119: -3.861419579 | H119: =[2]!XLSTAT_PDFStudent(F119,23) -> 8.11631738e-26 | I119: 119 | K119: -2.327051773 | L119: =[2]!XLSTAT_PDFStudent(K119,23) -> 0.03121202127 | M119: 119 | O119: 23 | P119: 5
A120: 120 | B120: 2.622442726 | C120: 2.622442726 | D120: =[2]!XLSTAT_PDFStudent(B120,23) -> 0.01709406054 | E120: 120 | F120: -3.861419579 | G120: -3.861419579 | H120: =[2]!XLSTAT_PDFStudent(F120,23) -> 0.000981301433 | I120: 120 | K120: -2.309355562 | L120: =[2]!XLSTAT_PDFStudent(K120,23) -> 0.03231406584 | M120: 120 | O120: 24 | P120: 5
A121: 121 | B121: 2.631828914 | C121: 2.631828914 | D121: =[2]!XLSTAT_PDFStudent(B121,23) -> 0.01675906466 | E121: 121 | F121: -3.852033391 | G121: -3.852033391 | H121: =[2]!XLSTAT_PDFStudent(F121,23) -> 0.001004071655 | I121: 121 | K121: -2.291659351 | L121: =[2]!XLSTAT_PDFStudent(K121,23) -> 0.03344948865 | M121: 121 | O121: 1 | P121: 6
A122: 122 | B122: 51 | C122: 2.631828914 | D122: =[2]!XLSTAT_PDFStudent(B122,23) -> 8.11631738e-26 | E122: 122 | F122: 51 | G122: -3.852033391 | H122: =[2]!XLSTAT_PDFStudent(F122,23) -> 8.11631738e-26 | I122: 122 | K122: -2.27396314 | L122: =[2]!XLSTAT_PDFStudent(K122,23) -> 0.03461902077 | M122: 122 | O122: 2 | P122: 6
A123: 123 | B123: 51 | C123: 2.641215103 | D123: =[2]!XLSTAT_PDFStudent(B123,23) -> 8.11631738e-26 | E123: 123 | F123: 51 | G123: -3.842647202 | H123: =[2]!XLSTAT_PDFStudent(F123,23) -> 8.11631738e-26 | I123: 123 | K123: -2.256266928 | L123: =[2]!XLSTAT_PDFStudent(K123,23) -> 0.03582339529 | M123: 123 | O123: 3 | P123: 6
A124: 124 | B124: 2.641215103 | C124: 2.641215103 | D124: =[2]!XLSTAT_PDFStudent(B124,23) -> 0.01643001028 | E124: 124 | F124: -3.842647202 | G124: -3.842647202 | H124: =[2]!XLSTAT_PDFStudent(F124,23) -> 0.001027357855 | I124: 124 | K124: -2.238570717 | L124: =[2]!XLSTAT_PDFStudent(K124,23) -> 0.03706334651 | M124: 124 | O124: 4 | P124: 6
A125: 125 | B125: 2.650601291 | C125: 2.650601291 | D125: =[2]!XLSTAT_PDFStudent(B125,23) -> 0.01610680934 | E125: 125 | F125: -3.833261014 | G125: -3.833261014 | H125: =[2]!XLSTAT_PDFStudent(F125,23) -> 0.001051171273 | I125: 125 | K125: -2.220874506 | L125: =[2]!XLSTAT_PDFStudent(K125,23) -> 0.03833960914 | M125: 125 | O125: 5 | P125: 6
A126: 126 | B126: 51 | C126: 2.650601291 | D126: =[2]!XLSTAT_PDFStudent(B126,23) -> 8.11631738e-26 | E126: 126 | F126: 51 | G126: -3.833261014 | H126: =[2]!XLSTAT_PDFStudent(F126,23) -> 8.11631738e-26 | I126: 126 | K126: -2.203178295 | L126: =[2]!XLSTAT_PDFStudent(K126,23) -> 0.0396529174 | M126: 126 | O126: 6 | P126: 6
A127: 127 | B127: 51 | C127: 2.659987479 | D127: =[2]!XLSTAT_PDFStudent(B127,23) -> 8.11631738e-26 | E127: 127 | F127: 51 | G127: -3.823874825 | H127: =[2]!XLSTAT_PDFStudent(F127,23) -> 8.11631738e-26 | I127: 127 | K127: -2.185482084 | L127: =[2]!XLSTAT_PDFStudent(K127,23) -> 0.04100400405 | M127: 127 | O127: 7 | P127: 6
A128: 128 | B128: 2.659987479 | C128: 2.659987479 | D128: =[2]!XLSTAT_PDFStudent(B128,23) -> 0.01578937466 | E128: 128 | F128: -3.823874825 | G128: -3.823874825 | H128: =[2]!XLSTAT_PDFStudent(F128,23) -> 0.001075523373 | I128: 128 | K128: -2.167785872 | L128: =[2]!XLSTAT_PDFStudent(K128,23) -> 0.04239359945 | M128: 128 | O128: 8 | P128: 6
A129: 129 | B129: =IF(-1^(INT(A129/2)+2)>0,2.0686576103+2*INT(A129/2-1/2)*0.0046930942,51) -> 2.669373668 | C129: =2.0686576103+2*INT(A129/2-1/2)*0.0046930942 -> 2.669373668 | D129: =[2]!XLSTAT_PDFStudent(B129,23) -> 0.01547761985 | E129: 129 | F129: =IF(-1^(INT(E129/2)+2)>0,-4.4152046947+2*INT(E129/2-1/2)*0.0046930942,51) -> -3.814488637 | G129: =-4.4152046947+2*INT(E129/2-1/2)*0.0046930942 -> -3.814488637 | H129: =[2]!XLSTAT_PDFStudent(F129,23) -> 0.001100425858 | I129: 129 | K129: =-4.4152046947+(I129-1)*0.0176962112 -> -2.150089661 | L129: =[2]!XLSTAT_PDFStudent(K129,23) -> 0.04382243056 | M129: 129 | O129: =M129-24*INT((-1/2+M129)/24) -> 9 | P129: =1+INT((M129-1/2)/24) -> 6
A130: 130 | B130: 51 | C130: 2.669373668 | D130: =[2]!XLSTAT_PDFStudent(B130,23) -> 8.11631738e-26 | E130: 130 | F130: 51 | G130: -3.814488637 | H130: =[2]!XLSTAT_PDFStudent(F130,23) -> 8.11631738e-26 | I130: 130 | K130: -2.13239345 | L130: =[2]!XLSTAT_PDFStudent(K130,23) -> 0.04529121982 | M130: 130 | O130: 10 | P130: 6
A131: 131 | B131: 51 | C131: 2.678759856 | D131: =[2]!XLSTAT_PDFStudent(B131,23) -> 8.11631738e-26 | E131: 131 | F131: 51 | G131: -3.805102449 | H131: =[2]!XLSTAT_PDFStudent(F131,23) -> 8.11631738e-26 | I131: 131 | K131: -2.114697239 | L131: =[2]!XLSTAT_PDFStudent(K131,23) -> 0.0468006841 | M131: 131 | O131: 11 | P131: 6
A132: 132 | B132: 2.678759856 | C132: 2.678759856 | D132: =[2]!XLSTAT_PDFStudent(B132,23) -> 0.01517145939 | E132: 132 | F132: -3.805102449 | G132: -3.805102449 | H132: =[2]!XLSTAT_PDFStudent(F132,23) -> 0.001125890664 | I132: 132 | K132: -2.097001028 | L132: =[2]!XLSTAT_PDFStudent(K132,23) -> 0.04835153352 | M132: 132 | O132: 12 | P132: 6
A133: 133 | B133: 2.688146045 | C133: 2.688146045 | D133: =[2]!XLSTAT_PDFStudent(B133,23) -> 0.01487080862 | E133: 133 | F133: -3.79571626 | G133: -3.79571626 | H133: =[2]!XLSTAT_PDFStudent(F133,23) -> 0.001151929972 | I133: 133 | K133: -2.079304816 | L133: =[2]!XLSTAT_PDFStudent(K133,23) -> 0.04994447028 | M133: 133 | O133: 13 | P133: 6
A134: 134 | B134: 51 | C134: 2.688146045 | D134: =[2]!XLSTAT_PDFStudent(B134,23) -> 8.11631738e-26 | E134: 134 | F134: 51 | G134: -3.79571626 | H134: =[2]!XLSTAT_PDFStudent(F134,23) -> 8.11631738e-26 | I134: 134 | K134: -2.061608605 | L134: =[2]!XLSTAT_PDFStudent(K134,23) -> 0.05158018739 | M134: 134 | O134: 14 | P134: 6
A135: 135 | B135: 51 | C135: 2.697532233 | D135: =[2]!XLSTAT_PDFStudent(B135,23) -> 8.11631738e-26 | E135: 135 | F135: 51 | G135: -3.786330072 | H135: =[2]!XLSTAT_PDFStudent(F135,23) -> 8.11631738e-26 | I135: 135 | K135: -2.043912394 | L135: =[2]!XLSTAT_PDFStudent(K135,23) -> 0.05325936741 | M135: 135 | O135: 15 | P135: 6
A136: 136 | B136: 2.697532233 | C136: 2.697532233 | D136: =[2]!XLSTAT_PDFStudent(B136,23) -> 0.01457558369 | E136: 136 | F136: -3.786330072 | G136: -3.786330072 | H136: =[2]!XLSTAT_PDFStudent(F136,23) -> 0.001178556209 | I136: 136 | K136: -2.026216183 | L136: =[2]!XLSTAT_PDFStudent(K136,23) -> 0.05498268113 | M136: 136 | O136: 16 | P136: 6
A137: 137 | B137: 2.706918421 | C137: 2.706918421 | D137: =[2]!XLSTAT_PDFStudent(B137,23) -> 0.01428570165 | E137: 137 | F137: -3.776943883 | G137: -3.776943883 | H137: =[2]!XLSTAT_PDFStudent(F137,23) -> 0.001205782051 | I137: 137 | K137: -2.008519972 | L137: =[2]!XLSTAT_PDFStudent(K137,23) -> 0.05675078621 | M137: 137 | O137: 17 | P137: 6
A138: 138 | B138: 51 | C138: 2.706918421 | D138: =[2]!XLSTAT_PDFStudent(B138,23) -> 8.11631738e-26 | E138: 138 | F138: 51 | G138: -3.776943883 | H138: =[2]!XLSTAT_PDFStudent(F138,23) -> 8.11631738e-26 | I138: 138 | K138: -1.99082376 | L138: =[2]!XLSTAT_PDFStudent(K138,23) -> 0.05856432574 | M138: 138 | O138: 18 | P138: 6
A139: 139 | B139: 51 | C139: 2.71630461 | D139: =[2]!XLSTAT_PDFStudent(B139,23) -> 8.11631738e-26 | E139: 139 | F139: 51 | G139: -3.767557695 | H139: =[2]!XLSTAT_PDFStudent(F139,23) -> 8.11631738e-26 | I139: 139 | K139: -1.973127549 | L139: =[2]!XLSTAT_PDFStudent(K139,23) -> 0.06042392684 | M139: 139 | O139: 19 | P139: 6
A140: 140 | B140: 2.71630461 | C140: 2.71630461 | D140: =[2]!XLSTAT_PDFStudent(B140,23) -> 0.01400108037 | E140: 140 | F140: -3.767557695 | G140: -3.767557695 | H140: =[2]!XLSTAT_PDFStudent(F140,23) -> 0.001233620431 | I140: 140 | K140: -1.955431338 | L140: =[2]!XLSTAT_PDFStudent(K140,23) -> 0.06233019913 | M140: 140 | O140: 20 | P140: 6
A141: 141 | B141: 2.725690798 | C141: 2.725690798 | D141: =[2]!XLSTAT_PDFStudent(B141,23) -> 0.0137216386 | E141: 141 | F141: -3.758171507 | G141: -3.758171507 | H141: =[2]!XLSTAT_PDFStudent(F141,23) -> 0.001262084542 | I141: 141 | K141: -1.937735127 | L141: =[2]!XLSTAT_PDFStudent(K141,23) -> 0.06428373323 | M141: 141 | O141: 21 | P141: 6
A142: 142 | B142: 51 | C142: 2.725690798 | D142: =[2]!XLSTAT_PDFStudent(B142,23) -> 8.11631738e-26 | E142: 142 | F142: 51 | G142: -3.758171507 | H142: =[2]!XLSTAT_PDFStudent(F142,23) -> 8.11631738e-26 | I142: 142 | K142: -1.920038916 | L142: =[2]!XLSTAT_PDFStudent(K142,23) -> 0.06628509919 | M142: 142 | O142: 22 | P142: 6
A143: 143 | B143: 51 | C143: 2.735076987 | D143: =[2]!XLSTAT_PDFStudent(B143,23) -> 8.11631738e-26 | E143: 143 | F143: 51 | G143: -3.748785318 | H143: =[2]!XLSTAT_PDFStudent(F143,23) -> 8.11631738e-26 | I143: 143 | K143: -1.902342704 | L143: =[2]!XLSTAT_PDFStudent(K143,23) -> 0.06833484489 | M143: 143 | O143: 23 | P143: 6
A144: 144 | B144: 2.735076987 | C144: 2.735076987 | D144: =[2]!XLSTAT_PDFStudent(B144,23) -> 0.01344729596 | E144: 144 | F144: -3.748785318 | G144: -3.748785318 | H144: =[2]!XLSTAT_PDFStudent(F144,23) -> 0.00129118784 | I144: 144 | K144: -1.884646493 | L144: =[2]!XLSTAT_PDFStudent(K144,23) -> 0.07043349441 | M144: 144 | O144: 24 | P144: 6
A145: 145 | B145: 2.744463175 | C145: 2.744463175 | D145: =[2]!XLSTAT_PDFStudent(B145,23) -> 0.01317797293 | E145: 145 | F145: -3.73939913 | G145: -3.73939913 | H145: =[2]!XLSTAT_PDFStudent(F145,23) -> 0.001320944051 | I145: 145 | K145: -1.866950282 | L145: =[2]!XLSTAT_PDFStudent(K145,23) -> 0.07258154637 | M145: 145 | O145: 1 | P145: 7
A146: 146 | B146: 51 | C146: 2.744463175 | D146: =[2]!XLSTAT_PDFStudent(B146,23) -> 8.11631738e-26 | E146: 146 | F146: 51 | G146: -3.73939913 | H146: =[2]!XLSTAT_PDFStudent(F146,23) -> 8.11631738e-26 | I146: 146 | K146: -1.849254071 | L146: =[2]!XLSTAT_PDFStudent(K146,23) -> 0.07477947221 | M146: 146 | O146: 2 | P146: 7
A147: 147 | B147: 51 | C147: 2.753849363 | D147: =[2]!XLSTAT_PDFStudent(B147,23) -> 8.11631738e-26 | E147: 147 | F147: 51 | G147: -3.730012942 | H147: =[2]!XLSTAT_PDFStudent(F147,23) -> 8.11631738e-26 | I147: 147 | K147: -1.83155786 | L147: =[2]!XLSTAT_PDFStudent(K147,23) -> 0.07702771451 | M147: 147 | O147: 3 | P147: 7
A148: 148 | B148: 2.753849363 | C148: 2.753849363 | D148: =[2]!XLSTAT_PDFStudent(B148,23) -> 0.01291359083 | E148: 148 | F148: -3.730012942 | G148: -3.730012942 | H148: =[2]!XLSTAT_PDFStudent(F148,23) -> 0.001351367174 | I148: 148 | K148: -1.813861648 | L148: =[2]!XLSTAT_PDFStudent(K148,23) -> 0.0793266852 | M148: 148 | O148: 4 | P148: 7
A149: 149 | B149: 2.763235552 | C149: 2.763235552 | D149: =[2]!XLSTAT_PDFStudent(B149,23) -> 0.0126540719 | E149: 149 | F149: -3.720626753 | G149: -3.720626753 | H149: =[2]!XLSTAT_PDFStudent(F149,23) -> 0.001382471489 | I149: 149 | K149: -1.796165437 | L149: =[2]!XLSTAT_PDFStudent(K149,23) -> 0.08167676382 | M149: 149 | O149: 5 | P149: 7
A150: 150 | B150: 51 | C150: 2.763235552 | D150: =[2]!XLSTAT_PDFStudent(B150,23) -> 8.11631738e-26 | E150: 150 | F150: 51 | G150: -3.720626753 | H150: =[2]!XLSTAT_PDFStudent(F150,23) -> 8.11631738e-26 | I150: 150 | K150: -1.778469226 | L150: =[2]!XLSTAT_PDFStudent(K150,23) -> 0.08407829569 | M150: 150 | O150: 6 | P150: 7
A151: 151 | B151: 51 | C151: 2.77262174 | D151: =[2]!XLSTAT_PDFStudent(B151,23) -> 8.11631738e-26 | E151: 151 | F151: 51 | G151: -3.711240565 | H151: =[2]!XLSTAT_PDFStudent(F151,23) -> 8.11631738e-26 | I151: 151 | K151: -1.760773015 | L151: =[2]!XLSTAT_PDFStudent(K151,23) -> 0.08653159014 | M151: 151 | O151: 7 | P151: 7
A152: 152 | B152: 2.77262174 | C152: 2.77262174 | D152: =[2]!XLSTAT_PDFStudent(B152,23) -> 0.0123993392 | E152: 152 | F152: -3.711240565 | G152: -3.711240565 | H152: =[2]!XLSTAT_PDFStudent(F152,23) -> 0.001414271557 | I152: 152 | K152: -1.743076804 | L152: =[2]!XLSTAT_PDFStudent(K152,23) -> 0.08903691865 | M152: 152 | O152: 8 | P152: 7
A153: 153 | B153: 2.782007929 | C153: 2.782007929 | D153: =[2]!XLSTAT_PDFStudent(B153,23) -> 0.01214931668 | E153: 153 | F153: -3.701854376 | G153: -3.701854376 | H153: =[2]!XLSTAT_PDFStudent(F153,23) -> 0.001446782227 | I153: 153 | K153: -1.725380592 | L153: =[2]!XLSTAT_PDFStudent(K153,23) -> 0.09159451305 | M153: 153 | O153: 9 | P153: 7
A154: 154 | B154: 51 | C154: 2.782007929 | D154: =[2]!XLSTAT_PDFStudent(B154,23) -> 8.11631738e-26 | E154: 154 | F154: 51 | G154: -3.701854376 | H154: =[2]!XLSTAT_PDFStudent(F154,23) -> 8.11631738e-26 | I154: 154 | K154: -1.707684381 | L154: =[2]!XLSTAT_PDFStudent(K154,23) -> 0.09420456364 | M154: 154 | O154: 10 | P154: 7
A155: 155 | B155: 51 | C155: 2.791394117 | D155: =[2]!XLSTAT_PDFStudent(B155,23) -> 8.11631738e-26 | E155: 155 | F155: 51 | G155: -3.692468188 | H155: =[2]!XLSTAT_PDFStudent(F155,23) -> 8.11631738e-26 | I155: 155 | K155: -1.68998817 | L155: =[2]!XLSTAT_PDFStudent(K155,23) -> 0.09686721734 | M155: 155 | O155: 11 | P155: 7
A156: 156 | B156: 2.791394117 | C156: 2.791394117 | D156: =[2]!XLSTAT_PDFStudent(B156,23) -> 0.01190392916 | E156: 156 | F156: -3.692468188 | G156: -3.692468188 | H156: =[2]!XLSTAT_PDFStudent(F156,23) -> 0.001480018644 | I156: 156 | K156: -1.672291959 | L156: =[2]!XLSTAT_PDFStudent(K156,23) -> 0.09958257588 | M156: 156 | O156: 12 | P156: 7
A157: 157 | B157: 2.800780306 | C157: 2.800780306 | D157: =[2]!XLSTAT_PDFStudent(B157,23) -> 0.01166310233 | E157: 157 | F157: -3.683081999 | G157: -3.683081999 | H157: =[2]!XLSTAT_PDFStudent(F157,23) -> 0.00151399625 | I157: 157 | K157: -1.654595748 | L157: =[2]!XLSTAT_PDFStudent(K157,23) -> 0.1023506939 | M157: 157 | O157: 13 | P157: 7
A158: 158 | B158: 51 | C158: 2.800780306 | D158: =[2]!XLSTAT_PDFStudent(B158,23) -> 8.11631738e-26 | E158: 158 | F158: 51 | G158: -3.683081999 | H158: =[2]!XLSTAT_PDFStudent(F158,23) -> 8.11631738e-26 | I158: 158 | K158: -1.636899536 | L158: =[2]!XLSTAT_PDFStudent(K158,23) -> 0.1051715772 | M158: 158 | O158: 14 | P158: 7
A159: 159 | B159: 51 | C159: 2.810166494 | D159: =[2]!XLSTAT_PDFStudent(B159,23) -> 8.11631738e-26 | E159: 159 | F159: 51 | G159: -3.673695811 | H159: =[2]!XLSTAT_PDFStudent(F159,23) -> 8.11631738e-26 | I159: 159 | K159: -1.619203325 | L159: =[2]!XLSTAT_PDFStudent(K159,23) -> 0.1080451807 | M159: 159 | O159: 15 | P159: 7
A160: 160 | B160: 2.810166494 | C160: 2.810166494 | D160: =[2]!XLSTAT_PDFStudent(B160,23) -> 0.01142676273 | E160: 160 | F160: -3.673695811 | G160: -3.673695811 | H160: =[2]!XLSTAT_PDFStudent(F160,23) -> 0.001548730789 | I160: 160 | K160: -1.601507114 | L160: =[2]!XLSTAT_PDFStudent(K160,23) -> 0.110971407 | M160: 160 | O160: 16 | P160: 7
A161: 161 | B161: 2.819552682 | C161: 2.819552682 | D161: =[2]!XLSTAT_PDFStudent(B161,23) -> 0.0111948378 | E161: 161 | F161: -3.664309623 | G161: -3.664309623 | H161: =[2]!XLSTAT_PDFStudent(F161,23) -> 0.001584238317 | I161: 161 | K161: -1.583810903 | L161: =[2]!XLSTAT_PDFStudent(K161,23) -> 0.1139501041 | M161: 161 | O161: 17 | P161: 7
A162: 162 | B162: 51 | C162: 2.819552682 | D162: =[2]!XLSTAT_PDFStudent(B162,23) -> 8.11631738e-26 | E162: 162 | F162: 51 | G162: -3.664309623 | H162: =[2]!XLSTAT_PDFStudent(F162,23) -> 8.11631738e-26 | I162: 162 | K162: -1.566114692 | L162: =[2]!XLSTAT_PDFStudent(K162,23) -> 0.1169810641 | M162: 162 | O162: 18 | P162: 7
A163: 163 | B163: 51 | C163: 2.828938871 | D163: =[2]!XLSTAT_PDFStudent(B163,23) -> 8.11631738e-26 | E163: 163 | F163: 51 | G163: -3.654923434 | H163: =[2]!XLSTAT_PDFStudent(F163,23) -> 8.11631738e-26 | I163: 163 | K163: -1.54841848 | L163: =[2]!XLSTAT_PDFStudent(K163,23) -> 0.1200640213 | M163: 163 | O163: 19 | P163: 7
A164: 164 | B164: 2.828938871 | C164: 2.828938871 | D164: =[2]!XLSTAT_PDFStudent(B164,23) -> 0.01096725582 | E164: 164 | F164: -3.654923434 | G164: -3.654923434 | H164: =[2]!XLSTAT_PDFStudent(F164,23) -> 0.001620535201 | I164: 164 | K164: -1.530722269 | L164: =[2]!XLSTAT_PDFStudent(K164,23) -> 0.1231986502 | M164: 164 | O164: 20 | P164: 7
A165: 165 | B165: 2.838325059 | C165: 2.838325059 | D165: =[2]!XLSTAT_PDFStudent(B165,23) -> 0.01074394594 | E165: 165 | F165: -3.645537246 | G165: -3.645537246 | H165: =[2]!XLSTAT_PDFStudent(F165,23) -> 0.001657638129 | I165: 165 | K165: -1.513026058 | L165: =[2]!XLSTAT_PDFStudent(K165,23) -> 0.1263845644 | M165: 165 | O165: 21 | P165: 7
A166: 166 | B166: 51 | C166: 2.838325059 | D166: =[2]!XLSTAT_PDFStudent(B166,23) -> 8.11631738e-26 | E166: 166 | F166: 51 | G166: -3.645537246 | H166: =[2]!XLSTAT_PDFStudent(F166,23) -> 8.11631738e-26 | I166: 166 | K166: -1.495329847 | L166: =[2]!XLSTAT_PDFStudent(K166,23) -> 0.1296213144 | M166: 166 | O166: 22 | P166: 7
A167: 167 | B167: 51 | C167: 2.847711247 | D167: =[2]!XLSTAT_PDFStudent(B167,23) -> 8.11631738e-26 | E167: 167 | F167: 51 | G167: -3.636151057 | H167: =[2]!XLSTAT_PDFStudent(F167,23) -> 8.11631738e-26 | I167: 167 | K167: -1.477633636 | L167: =[2]!XLSTAT_PDFStudent(K167,23) -> 0.1329083865 | M167: 167 | O167: 23 | P167: 7
A168: 168 | B168: 2.847711247 | C168: 2.847711247 | D168: =[2]!XLSTAT_PDFStudent(B168,23) -> 0.01052483817 | E168: 168 | F168: -3.636151057 | G168: -3.636151057 | H168: =[2]!XLSTAT_PDFStudent(F168,23) -> 0.001695564112 | I168: 168 | K168: -1.459937424 | L168: =[2]!XLSTAT_PDFStudent(K168,23) -> 0.1362452012 | M168: 168 | O168: 24 | P168: 7
A169: 169 | B169: 2.857097436 | C169: 2.857097436 | D169: =[2]!XLSTAT_PDFStudent(B169,23) -> 0.01030986339 | E169: 169 | F169: -3.626764869 | G169: -3.626764869 | H169: =[2]!XLSTAT_PDFStudent(F169,23) -> 0.001734330492 | I169: 169 | K169: -1.442241213 | L169: =[2]!XLSTAT_PDFStudent(K169,23) -> 0.1396311114 | M169: 169 | O169: 1 | P169: 8
A170: 170 | B170: 51 | C170: 2.857097436 | D170: =[2]!XLSTAT_PDFStudent(B170,23) -> 8.11631738e-26 | E170: 170 | F170: 51 | G170: -3.626764869 | H170: =[2]!XLSTAT_PDFStudent(F170,23) -> 8.11631738e-26 | I170: 170 | K170: -1.424545002 | L170: =[2]!XLSTAT_PDFStudent(K170,23) -> 0.1430654016 | M170: 170 | O170: 2 | P170: 8
A171: 171 | B171: 51 | C171: 2.866483624 | D171: =[2]!XLSTAT_PDFStudent(B171,23) -> 8.11631738e-26 | E171: 171 | F171: 51 | G171: -3.617378681 | H171: =[2]!XLSTAT_PDFStudent(F171,23) -> 8.11631738e-26 | I171: 171 | K171: -1.406848791 | L171: =[2]!XLSTAT_PDFStudent(K171,23) -> 0.1465472859 | M171: 171 | O171: 3 | P171: 8
A172: 172 | B172: 2.866483624 | C172: 2.866483624 | D172: =[2]!XLSTAT_PDFStudent(B172,23) -> 0.01009895332 | E172: 172 | F172: -3.617378681 | G172: -3.617378681 | H172: =[2]!XLSTAT_PDFStudent(F172,23) -> 0.001773954948 | I172: 172 | K172: -1.38915258 | L172: =[2]!XLSTAT_PDFStudent(K172,23) -> 0.1500759075 | M172: 172 | O172: 4 | P172: 8
A173: 173 | B173: 2.875869813 | C173: 2.875869813 | D173: =[2]!XLSTAT_PDFStudent(B173,23) -> 0.009892040565 | E173: 173 | F173: -3.607992492 | G173: -3.607992492 | H173: =[2]!XLSTAT_PDFStudent(F173,23) -> 0.001814455497 | I173: 173 | K173: -1.371456368 | L173: =[2]!XLSTAT_PDFStudent(K173,23) -> 0.153650337 | M173: 173 | O173: 5 | P173: 8
A174: 174 | B174: 51 | C174: 2.875869813 | D174: =[2]!XLSTAT_PDFStudent(B174,23) -> 8.11631738e-26 | E174: 174 | F174: 51 | G174: -3.607992492 | H174: =[2]!XLSTAT_PDFStudent(F174,23) -> 8.11631738e-26 | I174: 174 | K174: -1.353760157 | L174: =[2]!XLSTAT_PDFStudent(K174,23) -> 0.1572695717 | M174: 174 | O174: 6 | P174: 8
A175: 175 | B175: 51 | C175: 2.885256001 | D175: =[2]!XLSTAT_PDFStudent(B175,23) -> 8.11631738e-26 | E175: 175 | F175: 51 | G175: -3.598606304 | H175: =[2]!XLSTAT_PDFStudent(F175,23) -> 8.11631738e-26 | I175: 175 | K175: -1.336063946 | L175: =[2]!XLSTAT_PDFStudent(K175,23) -> 0.1609325344 | M175: 175 | O175: 7 | P175: 8
A176: 176 | B176: 2.885256001 | C176: 2.885256001 | D176: =[2]!XLSTAT_PDFStudent(B176,23) -> 0.009689058549 | E176: 176 | F176: -3.598606304 | G176: -3.598606304 | H176: =[2]!XLSTAT_PDFStudent(F176,23) -> 0.001855850504 | I176: 176 | K176: -1.318367735 | L176: =[2]!XLSTAT_PDFStudent(K176,23) -> 0.1646380727 | M176: 176 | O176: 8 | P176: 8
A177: 177 | B177: 2.894642189 | C177: 2.894642189 | D177: =[2]!XLSTAT_PDFStudent(B177,23) -> 0.009489941564 | E177: 177 | F177: -3.589220115 | G177: -3.589220115 | H177: =[2]!XLSTAT_PDFStudent(F177,23) -> 0.001898158687 | I177: 177 | K177: -1.300671524 | L177: =[2]!XLSTAT_PDFStudent(K177,23) -> 0.1683849581 | M177: 177 | O177: 9 | P177: 8
A178: 178 | B178: 51 | C178: 2.894642189 | D178: =[2]!XLSTAT_PDFStudent(B178,23) -> 8.11631738e-26 | E178: 178 | F178: 51 | G178: -3.589220115 | H178: =[2]!XLSTAT_PDFStudent(F178,23) -> 8.11631738e-26 | I178: 178 | K178: -1.282975312 | L178: =[2]!XLSTAT_PDFStudent(K178,23) -> 0.1721718856 | M178: 178 | O178: 10 | P178: 8
A179: 179 | B179: 51 | C179: 2.904028378 | D179: =[2]!XLSTAT_PDFStudent(B179,23) -> 8.11631738e-26 | E179: 179 | F179: 51 | G179: -3.579833927 | H179: =[2]!XLSTAT_PDFStudent(F179,23) -> 8.11631738e-26 | I179: 179 | K179: -1.265279101 | L179: =[2]!XLSTAT_PDFStudent(K179,23) -> 0.1759974729 | M179: 179 | O179: 11 | P179: 8
A180: 180 | B180: 2.904028378 | C180: 2.904028378 | D180: =[2]!XLSTAT_PDFStudent(B180,23) -> 0.009294624744 | E180: 180 | F180: -3.579833927 | G180: -3.579833927 | H180: =[2]!XLSTAT_PDFStudent(F180,23) -> 0.001941399121 | I180: 180 | K180: -1.24758289 | L180: =[2]!XLSTAT_PDFStudent(K180,23) -> 0.1798602601 | M180: 180 | O180: 12 | P180: 8
A181: 181 | B181: 2.913414566 | C181: 2.913414566 | D181: =[2]!XLSTAT_PDFStudent(B181,23) -> 0.009103044062 | E181: 181 | F181: -3.570447739 | G181: -3.570447739 | H181: =[2]!XLSTAT_PDFStudent(F181,23) -> 0.001985591246 | I181: 181 | K181: -1.229886679 | L181: =[2]!XLSTAT_PDFStudent(K181,23) -> 0.1837587097 | M181: 181 | O181: 13 | P181: 8
A182: 182 | B182: 51 | C182: 2.913414566 | D182: =[2]!XLSTAT_PDFStudent(B182,23) -> 8.11631738e-26 | E182: 182 | F182: 51 | G182: -3.570447739 | H182: =[2]!XLSTAT_PDFStudent(F182,23) -> 8.11631738e-26 | I182: 182 | K182: -1.212190468 | L182: =[2]!XLSTAT_PDFStudent(K182,23) -> 0.1876912059 | M182: 182 | O182: 14 | P182: 8
A183: 183 | B183: 51 | C183: 2.922800755 | D183: =[2]!XLSTAT_PDFStudent(B183,23) -> 8.11631738e-26 | E183: 183 | F183: 51 | G183: -3.56106155 | H183: =[2]!XLSTAT_PDFStudent(F183,23) -> 8.11631738e-26 | I183: 183 | K183: -1.194494256 | L183: =[2]!XLSTAT_PDFStudent(K183,23) -> 0.1916560552 | M183: 183 | O183: 15 | P183: 8
A184: 184 | B184: 2.922800755 | C184: 2.922800755 | D184: =[2]!XLSTAT_PDFStudent(B184,23) -> 0.008915136331 | E184: 184 | F184: -3.56106155 | G184: -3.56106155 | H184: =[2]!XLSTAT_PDFStudent(F184,23) -> 0.002030754871 | I184: 184 | K184: -1.176798045 | L184: =[2]!XLSTAT_PDFStudent(K184,23) -> 0.195651486 | M184: 184 | O184: 16 | P184: 8
A185: 185 | B185: 2.932186943 | C185: 2.932186943 | D185: =[2]!XLSTAT_PDFStudent(B185,23) -> 0.008730839197 | E185: 185 | F185: -3.551675362 | G185: -3.551675362 | H185: =[2]!XLSTAT_PDFStudent(F185,23) -> 0.00207691018 | I185: 185 | K185: -1.159101834 | L185: =[2]!XLSTAT_PDFStudent(K185,23) -> 0.1996756494 | M185: 185 | O185: 17 | P185: 8
A186: 186 | B186: 51 | C186: 2.932186943 | D186: =[2]!XLSTAT_PDFStudent(B186,23) -> 8.11631738e-26 | E186: 186 | F186: 51 | G186: -3.551675362 | H186: =[2]!XLSTAT_PDFStudent(F186,23) -> 8.11631738e-26 | I186: 186 | K186: -1.141405623 | L186: =[2]!XLSTAT_PDFStudent(K186,23) -> 0.2037266191 | M186: 186 | O186: 18 | P186: 8
A187: 187 | B187: 51 | C187: 2.941573131 | D187: =[2]!XLSTAT_PDFStudent(B187,23) -> 8.11631738e-26 | E187: 187 | F187: 51 | G187: -3.542289173 | H187: =[2]!XLSTAT_PDFStudent(F187,23) -> 8.11631738e-26 | I187: 187 | K187: -1.123709412 | L187: =[2]!XLSTAT_PDFStudent(K187,23) -> 0.2078023925 | M187: 187 | O187: 19 | P187: 8
A188: 188 | B188: 2.941573131 | C188: 2.941573131 | D188: =[2]!XLSTAT_PDFStudent(B188,23) -> 0.008550091137 | E188: 188 | F188: -3.542289173 | G188: -3.542289173 | H188: =[2]!XLSTAT_PDFStudent(F188,23) -> 0.002124077739 | I188: 188 | K188: -1.1060132 | L188: =[2]!XLSTAT_PDFStudent(K188,23) -> 0.211900891 | M188: 188 | O188: 20 | P188: 8
A189: 189 | B189: 2.95095932 | C189: 2.95095932 | D189: =[2]!XLSTAT_PDFStudent(B189,23) -> 0.008372831451 | E189: 189 | F189: -3.532902985 | G189: -3.532902985 | H189: =[2]!XLSTAT_PDFStudent(F189,23) -> 0.002172278503 | I189: 189 | K189: -1.088316989 | L189: =[2]!XLSTAT_PDFStudent(K189,23) -> 0.2160199613 | M189: 189 | O189: 21 | P189: 8
A190: 190 | B190: 51 | C190: 2.95095932 | D190: =[2]!XLSTAT_PDFStudent(B190,23) -> 8.11631738e-26 | E190: 190 | F190: 51 | G190: -3.532902985 | H190: =[2]!XLSTAT_PDFStudent(F190,23) -> 8.11631738e-26 | I190: 190 | K190: -1.070620778 | L190: =[2]!XLSTAT_PDFStudent(K190,23) -> 0.2201573762 | M190: 190 | O190: 22 | P190: 8
A191: 191 | B191: 51 | C191: 2.960345508 | D191: =[2]!XLSTAT_PDFStudent(B191,23) -> 8.11631738e-26 | E191: 191 | F191: 51 | G191: -3.523516797 | H191: =[2]!XLSTAT_PDFStudent(F191,23) -> 8.11631738e-26 | I191: 191 | K191: -1.052924567 | L191: =[2]!XLSTAT_PDFStudent(K191,23) -> 0.2243108359 | M191: 191 | O191: 23 | P191: 8
A192: 192 | B192: 2.960345508 | C192: 2.960345508 | D192: =[2]!XLSTAT_PDFStudent(B192,23) -> 0.00819900026 | E192: 192 | F192: -3.523516797 | G192: -3.523516797 | H192: =[2]!XLSTAT_PDFStudent(F192,23) -> 0.002221533819 | I192: 192 | K192: -1.035228356 | L192: =[2]!XLSTAT_PDFStudent(K192,23) -> 0.2284779694 | M192: 192 | O192: 24 | P192: 8
A193: 193 | B193: =IF(-1^(INT(A193/2)+2)>0,2.0686576103+2*INT(A193/2-1/2)*0.0046930942,51) -> 2.969731697 | C193: =2.0686576103+2*INT(A193/2-1/2)*0.0046930942 -> 2.969731697 | D193: =[2]!XLSTAT_PDFStudent(B193,23) -> 0.008028538501 | E193: 193 | F193: =IF(-1^(INT(E193/2)+2)>0,-4.4152046947+2*INT(E193/2-1/2)*0.0046930942,51) -> -3.514130608 | G193: =-4.4152046947+2*INT(E193/2-1/2)*0.0046930942 -> -3.514130608 | H193: =[2]!XLSTAT_PDFStudent(F193,23) -> 0.002271865434 | I193: 193 | K193: =-4.4152046947+(I193-1)*0.0176962112 -> -1.017532144 | L193: =[2]!XLSTAT_PDFStudent(K193,23) -> 0.232656336 | M193: 193 | O193: =M193-24*INT((-1/2+M193)/24) -> 1 | P193: =1+INT((M193-1/2)/24) -> 9
A194: 194 | B194: 51 | C194: 2.969731697 | D194: =[2]!XLSTAT_PDFStudent(B194,23) -> 8.11631738e-26 | E194: 194 | F194: 51 | G194: -3.514130608 | H194: =[2]!XLSTAT_PDFStudent(F194,23) -> 8.11631738e-26 | I194: 194 | K194: -0.9998359331 | L194: =[2]!XLSTAT_PDFStudent(K194,23) -> 0.2368434274 | M194: 194 | O194: 2 | P194: 9
A195: 195 | B195: 51 | C195: 2.979117885 | D195: =[2]!XLSTAT_PDFStudent(B195,23) -> 8.11631738e-26 | E195: 195 | F195: 51 | G195: -3.50474442 | H195: =[2]!XLSTAT_PDFStudent(F195,23) -> 8.11631738e-26 | I195: 195 | K195: -0.9821397219 | L195: =[2]!XLSTAT_PDFStudent(K195,23) -> 0.241036669 | M195: 195 | O195: 3 | P195: 9
A196: 196 | B196: 2.979117885 | C196: 2.979117885 | D196: =[2]!XLSTAT_PDFStudent(B196,23) -> 0.007861387921 | E196: 196 | F196: -3.50474442 | G196: -3.50474442 | H196: =[2]!XLSTAT_PDFStudent(F196,23) -> 0.002323295502 | I196: 196 | K196: -0.9644435107 | L196: =[2]!XLSTAT_PDFStudent(K196,23) -> 0.2452334225 | M196: 196 | O196: 4 | P196: 9
A197: 197 | B197: 2.988504073 | C197: 2.988504073 | D197: =[2]!XLSTAT_PDFStudent(B197,23) -> 0.007697491071 | E197: 197 | F197: -3.495358232 | G197: -3.495358232 | H197: =[2]!XLSTAT_PDFStudent(F197,23) -> 0.002375846589 | I197: 197 | K197: -0.9467472995 | L197: =[2]!XLSTAT_PDFStudent(K197,23) -> 0.2494309878 | M197: 197 | O197: 5 | P197: 9
A198: 198 | B198: 51 | C198: 2.988504073 | D198: =[2]!XLSTAT_PDFStudent(B198,23) -> 8.11631738e-26 | E198: 198 | F198: 51 | G198: -3.495358232 | H198: =[2]!XLSTAT_PDFStudent(F198,23) -> 8.11631738e-26 | I198: 198 | K198: -0.9290510883 | L198: =[2]!XLSTAT_PDFStudent(K198,23) -> 0.2536266058 | M198: 198 | O198: 6 | P198: 9
A199: 199 | B199: 51 | C199: 2.997890262 | D199: =[2]!XLSTAT_PDFStudent(B199,23) -> 8.11631738e-26 | E199: 199 | F199: 51 | G199: -3.485972043 | H199: =[2]!XLSTAT_PDFStudent(F199,23) -> 8.11631738e-26 | I199: 199 | K199: -0.9113548771 | L199: =[2]!XLSTAT_PDFStudent(K199,23) -> 0.2578174606 | M199: 199 | O199: 7 | P199: 9
A200: 200 | B200: 2.997890262 | C200: 2.997890262 | D200: =[2]!XLSTAT_PDFStudent(B200,23) -> 0.007536791305 | E200: 200 | F200: -3.485972043 | G200: -3.485972043 | H200: =[2]!XLSTAT_PDFStudent(F200,23) -> 0.00242954168 | I200: 200 | K200: -0.8936586659 | L200: =[2]!XLSTAT_PDFStudent(K200,23) -> 0.2620006825 | M200: 200 | O200: 8 | P200: 9
... 376 more rows

Sheet Test t et z (2 échant.)_HID (hidden)
A1: 1 | B1: 138 | C1: 2 | D1: 31
A2: 0.94 | B2: 150 | C2: 1.8 | D2: 38
A3: 1.06 | B3: 150 | C3: 2.2 | D3: 48
A4: 1.04 | B4: 220 | C4: 1.866666667 | D4: 60
A5: 0.96 | B5: 222 | C5: 2.133333333 | D5: 62
A6: 1.08 | B6: 263 | C6: 1.933333333 | D6: 68
A7: 0.92 | B7: 275 | C7: 2.066666667 | D7: 70
A8: 1.026666667 | B8: 282 | C8: 2 | D8: 94
A9: 0.9733333333 | B9: 292 | C9: 1.914285714 | D9: 94
A10: 1.2 | B10: 296 | C10: 2.085714286 | D10: 104
A11: 0.8 | B11: 300 | C11: 2 | D11: 132
A12: 1.155555556 | B12: 309 | C12: 1.914285714 | D12: 138
A13: 0.8444444444 | B13: 310 | C13: 2.085714286 | D13: 139
A14: 1.111111111 | B14: 310 | C14: 2.057142857 | D14: 175
A15: 0.8888888889 | B15: 316 | C15: 1.942857143 | D15: 186
A16: 1.066666667 | B16: 317 | C16: 2.057142857 | D16: 238
A17: 0.9333333333 | B17: 319 | C17: 1.942857143 | D17: 245
A18: 1.022222222 | B18: 321 | C18: 2 | D18: 271
A19: 0.9777777778 | B19: 329 | C19: 1.914285714 | D19: 291
A20: 1.04 | B20: 338 | C20: 2.085714286 | D20: 300
A21: 0.96 | B21: 362 | C21: 2.057142857 | D21: 329
A22: 1.04 | B22: 375 | C22: 1.942857143 | D22: 335
A23: 0.96 | B23: 376 | C23: 2.057142857 | D23: 364
A24: 1 | B24: 447 | C24: 1.942857143 | D24: 402

Sheet Test t et z (2 échant.)_HID1 (hidden)
A1: 0.85 | B1: 138 | C1: 1.85 | D1: 31
A2: 1.15 | B2: 138 | C2: 2.15 | D2: 31
A3: 0.85 | B3: 150 | C3: 1.85 | D3: 38
A4: 1.15 | B4: 150 | C4: 2.15 | D4: 38
A5: 0.85 | B5: 150 | C5: 1.85 | D5: 48
A6: 1.15 | B6: 150 | C6: 2.15 | D6: 48
A7: 0.85 | B7: 220 | C7: 1.85 | D7: 60
A8: 1.15 | B8: 220 | C8: 2.15 | D8: 60
A9: 0.85 | B9: 222 | C9: 1.85 | D9: 62
A10: 1.15 | B10: 222 | C10: 2.15 | D10: 62
A11: 0.85 | B11: 263 | C11: 1.85 | D11: 68
A12: 1.15 | B12: 263 | C12: 2.15 | D12: 68
A13: 0.85 | B13: 275 | C13: 1.85 | D13: 70
A14: 1.15 | B14: 275 | C14: 2.15 | D14: 70
A15: 0.85 | B15: 282 | C15: 1.85 | D15: 94
A16: 1.15 | B16: 282 | C16: 2.15 | D16: 94
A17: 0.85 | B17: 292 | C17: 1.85 | D17: 94
A18: 1.15 | B18: 292 | C18: 2.15 | D18: 94
A19: 0.85 | B19: 296 | C19: 1.85 | D19: 104
A20: 1.15 | B20: 296 | C20: 2.15 | D20: 104
A21: 0.85 | B21: 300 | C21: 1.85 | D21: 132
A22: 1.15 | B22: 300 | C22: 2.15 | D22: 132
A23: 0.85 | B23: 309 | C23: 1.85 | D23: 138
A24: 1.15 | B24: 309 | C24: 2.15 | D24: 138
A25: 0.85 | B25: 310 | C25: 1.85 | D25: 139
A26: 1.15 | B26: 310 | C26: 2.15 | D26: 139
A27: 0.85 | B27: 310 | C27: 1.85 | D27: 175
A28: 1.15 | B28: 310 | C28: 2.15 | D28: 175
A29: 0.85 | B29: 316 | C29: 1.85 | D29: 186
A30: 1.15 | B30: 316 | C30: 2.15 | D30: 186
A31: 0.85 | B31: 317 | C31: 1.85 | D31: 238
A32: 1.15 | B32: 317 | C32: 2.15 | D32: 238
A33: 0.85 | B33: 319 | C33: 1.85 | D33: 245
A34: 1.15 | B34: 319 | C34: 2.15 | D34: 245
A35: 0.85 | B35: 321 | C35: 1.85 | D35: 271
A36: 1.15 | B36: 321 | C36: 2.15 | D36: 271
A37: 0.85 | B37: 329 | C37: 1.85 | D37: 291
A38: 1.15 | B38: 329 | C38: 2.15 | D38: 291
A39: 0.85 | B39: 338 | C39: 1.85 | D39: 300
A40: 1.15 | B40: 338 | C40: 2.15 | D40: 300
A41: 0.85 | B41: 362 | C41: 1.85 | D41: 329
A42: 1.15 | B42: 362 | C42: 2.15 | D42: 329
A43: 0.85 | B43: 375 | C43: 1.85 | D43: 335
A44: 1.15 | B44: 375 | C44: 2.15 | D44: 335
A45: 0.85 | B45: 376 | C45: 1.85 | D45: 364
A46: 1.15 | B46: 376 | C46: 2.15 | D46: 364
A47: 0.85 | B47: 447 | C47: 1.85 | D47: 402
A48: 1.15 | B48: 447 | C48: 2.15 | D48: 402

Sheet 2 samples t test_HID (hidden)
A1: 1 | B1: 138 | C1: 2 | D1: 31
A2: 0.94 | B2: 150 | C2: 1.8 | D2: 38
A3: 1.06 | B3: 150 | C3: 2.2 | D3: 48
A4: 1.04 | B4: 220 | C4: 1.866666667 | D4: 60
A5: 0.96 | B5: 222 | C5: 2.133333333 | D5: 62
A6: 1.08 | B6: 263 | C6: 1.933333333 | D6: 68
A7: 0.92 | B7: 275 | C7: 2.066666667 | D7: 70
A8: 1.026666667 | B8: 282 | C8: 2 | D8: 94
A9: 0.9733333333 | B9: 292 | C9: 1.914285714 | D9: 94
A10: 1.2 | B10: 296 | C10: 2.085714286 | D10: 104
A11: 0.8 | B11: 300 | C11: 2 | D11: 132
A12: 1.155555556 | B12: 309 | C12: 1.914285714 | D12: 138
A13: 0.8444444444 | B13: 310 | C13: 2.085714286 | D13: 139
A14: 1.111111111 | B14: 310 | C14: 2.057142857 | D14: 175
A15: 0.8888888889 | B15: 316 | C15: 1.942857143 | D15: 186
A16: 1.066666667 | B16: 317 | C16: 2.057142857 | D16: 238
A17: 0.9333333333 | B17: 319 | C17: 1.942857143 | D17: 245
A18: 1.022222222 | B18: 321 | C18: 2 | D18: 271
A19: 0.9777777778 | B19: 329 | C19: 1.914285714 | D19: 291
A20: 1.04 | B20: 338 | C20: 2.085714286 | D20: 300
A21: 0.96 | B21: 362 | C21: 2.057142857 | D21: 329
A22: 1.04 | B22: 375 | C22: 1.942857143 | D22: 335
A23: 0.96 | B23: 376 | C23: 2.057142857 | D23: 364
A24: 1 | B24: 447 | C24: 1.942857143 | D24: 402

Sheet 2 samples t test_HID1 (hidden)
A1: 0.85 | B1: 138 | C1: 1.85 | D1: 31
A2: 1.15 | B2: 138 | C2: 2.15 | D2: 31
A3: 0.85 | B3: 150 | C3: 1.85 | D3: 38
A4: 1.15 | B4: 150 | C4: 2.15 | D4: 38
A5: 0.85 | B5: 150 | C5: 1.85 | D5: 48
A6: 1.15 | B6: 150 | C6: 2.15 | D6: 48
A7: 0.85 | B7: 220 | C7: 1.85 | D7: 60
A8: 1.15 | B8: 220 | C8: 2.15 | D8: 60
A9: 0.85 | B9: 222 | C9: 1.85 | D9: 62
A10: 1.15 | B10: 222 | C10: 2.15 | D10: 62
A11: 0.85 | B11: 263 | C11: 1.85 | D11: 68
A12: 1.15 | B12: 263 | C12: 2.15 | D12: 68
A13: 0.85 | B13: 275 | C13: 1.85 | D13: 70
A14: 1.15 | B14: 275 | C14: 2.15 | D14: 70
A15: 0.85 | B15: 282 | C15: 1.85 | D15: 94
A16: 1.15 | B16: 282 | C16: 2.15 | D16: 94
A17: 0.85 | B17: 292 | C17: 1.85 | D17: 94
A18: 1.15 | B18: 292 | C18: 2.15 | D18: 94
A19: 0.85 | B19: 296 | C19: 1.85 | D19: 104
A20: 1.15 | B20: 296 | C20: 2.15 | D20: 104
A21: 0.85 | B21: 300 | C21: 1.85 | D21: 132
A22: 1.15 | B22: 300 | C22: 2.15 | D22: 132
A23: 0.85 | B23: 309 | C23: 1.85 | D23: 138
A24: 1.15 | B24: 309 | C24: 2.15 | D24: 138
A25: 0.85 | B25: 310 | C25: 1.85 | D25: 139
A26: 1.15 | B26: 310 | C26: 2.15 | D26: 139
A27: 0.85 | B27: 310 | C27: 1.85 | D27: 175
A28: 1.15 | B28: 310 | C28: 2.15 | D28: 175
A29: 0.85 | B29: 316 | C29: 1.85 | D29: 186
A30: 1.15 | B30: 316 | C30: 2.15 | D30: 186
A31: 0.85 | B31: 317 | C31: 1.85 | D31: 238
A32: 1.15 | B32: 317 | C32: 2.15 | D32: 238
A33: 0.85 | B33: 319 | C33: 1.85 | D33: 245
A34: 1.15 | B34: 319 | C34: 2.15 | D34: 245
A35: 0.85 | B35: 321 | C35: 1.85 | D35: 271
A36: 1.15 | B36: 321 | C36: 2.15 | D36: 271
A37: 0.85 | B37: 329 | C37: 1.85 | D37: 291
A38: 1.15 | B38: 329 | C38: 2.15 | D38: 291
A39: 0.85 | B39: 338 | C39: 1.85 | D39: 300
A40: 1.15 | B40: 338 | C40: 2.15 | D40: 300
A41: 0.85 | B41: 362 | C41: 1.85 | D41: 329
A42: 1.15 | B42: 362 | C42: 2.15 | D42: 329
A43: 0.85 | B43: 375 | C43: 1.85 | D43: 335
A44: 1.15 | B44: 375 | C44: 2.15 | D44: 335
A45: 0.85 | B45: 376 | C45: 1.85 | D45: 364
A46: 1.15 | B46: 376 | C46: 2.15 | D46: 364
A47: 0.85 | B47: 447 | C47: 1.85 | D47: 402
A48: 1.15 | B48: 447 | C48: 2.15 | D48: 402

Sheet Prueba t (2 muestras)_HID (hidden)
A1: 1 | B1: 138 | C1: 2 | D1: 31
A2: 0.94 | B2: 150 | C2: 1.8 | D2: 38
A3: 1.06 | B3: 150 | C3: 2.2 | D3: 48
A4: 1.04 | B4: 220 | C4: 1.866666667 | D4: 60
A5: 0.96 | B5: 222 | C5: 2.133333333 | D5: 62
A6: 1.08 | B6: 263 | C6: 1.933333333 | D6: 68
A7: 0.92 | B7: 275 | C7: 2.066666667 | D7: 70
A8: 1.026666667 | B8: 282 | C8: 2 | D8: 94
A9: 0.9733333333 | B9: 292 | C9: 1.914285714 | D9: 94
A10: 1.2 | B10: 296 | C10: 2.085714286 | D10: 104
A11: 0.8 | B11: 300 | C11: 2 | D11: 132
A12: 1.155555556 | B12: 309 | C12: 1.914285714 | D12: 138
A13: 0.8444444444 | B13: 310 | C13: 2.085714286 | D13: 139
A14: 1.111111111 | B14: 310 | C14: 2.057142857 | D14: 175
A15: 0.8888888889 | B15: 316 | C15: 1.942857143 | D15: 186
A16: 1.066666667 | B16: 317 | C16: 2.057142857 | D16: 238
A17: 0.9333333333 | B17: 319 | C17: 1.942857143 | D17: 245
A18: 1.022222222 | B18: 321 | C18: 2 | D18: 271
A19: 0.9777777778 | B19: 329 | C19: 1.914285714 | D19: 291
A20: 1.04 | B20: 338 | C20: 2.085714286 | D20: 300
A21: 0.96 | B21: 362 | C21: 2.057142857 | D21: 329
A22: 1.04 | B22: 375 | C22: 1.942857143 | D22: 335
A23: 0.96 | B23: 376 | C23: 2.057142857 | D23: 364
A24: 1 | B24: 447 | C24: 1.942857143 | D24: 402

Sheet Prueba t (2 muestras)_HID1 (hidden)
A1: 0.85 | B1: 138 | C1: 1.85 | D1: 31
A2: 1.15 | B2: 138 | C2: 2.15 | D2: 31
A3: 0.85 | B3: 150 | C3: 1.85 | D3: 38
A4: 1.15 | B4: 150 | C4: 2.15 | D4: 38
A5: 0.85 | B5: 150 | C5: 1.85 | D5: 48
A6: 1.15 | B6: 150 | C6: 2.15 | D6: 48
A7: 0.85 | B7: 220 | C7: 1.85 | D7: 60
A8: 1.15 | B8: 220 | C8: 2.15 | D8: 60
A9: 0.85 | B9: 222 | C9: 1.85 | D9: 62
A10: 1.15 | B10: 222 | C10: 2.15 | D10: 62
A11: 0.85 | B11: 263 | C11: 1.85 | D11: 68
A12: 1.15 | B12: 263 | C12: 2.15 | D12: 68
A13: 0.85 | B13: 275 | C13: 1.85 | D13: 70
A14: 1.15 | B14: 275 | C14: 2.15 | D14: 70
A15: 0.85 | B15: 282 | C15: 1.85 | D15: 94
A16: 1.15 | B16: 282 | C16: 2.15 | D16: 94
A17: 0.85 | B17: 292 | C17: 1.85 | D17: 94
A18: 1.15 | B18: 292 | C18: 2.15 | D18: 94
A19: 0.85 | B19: 296 | C19: 1.85 | D19: 104
A20: 1.15 | B20: 296 | C20: 2.15 | D20: 104
A21: 0.85 | B21: 300 | C21: 1.85 | D21: 132
A22: 1.15 | B22: 300 | C22: 2.15 | D22: 132
A23: 0.85 | B23: 309 | C23: 1.85 | D23: 138
A24: 1.15 | B24: 309 | C24: 2.15 | D24: 138
A25: 0.85 | B25: 310 | C25: 1.85 | D25: 139
A26: 1.15 | B26: 310 | C26: 2.15 | D26: 139
A27: 0.85 | B27: 310 | C27: 1.85 | D27: 175
A28: 1.15 | B28: 310 | C28: 2.15 | D28: 175
A29: 0.85 | B29: 316 | C29: 1.85 | D29: 186
A30: 1.15 | B30: 316 | C30: 2.15 | D30: 186
A31: 0.85 | B31: 317 | C31: 1.85 | D31: 238
A32: 1.15 | B32: 317 | C32: 2.15 | D32: 238
A33: 0.85 | B33: 319 | C33: 1.85 | D33: 245
A34: 1.15 | B34: 319 | C34: 2.15 | D34: 245
A35: 0.85 | B35: 321 | C35: 1.85 | D35: 271
A36: 1.15 | B36: 321 | C36: 2.15 | D36: 271
A37: 0.85 | B37: 329 | C37: 1.85 | D37: 291
A38: 1.15 | B38: 329 | C38: 2.15 | D38: 291
A39: 0.85 | B39: 338 | C39: 1.85 | D39: 300
A40: 1.15 | B40: 338 | C40: 2.15 | D40: 300
A41: 0.85 | B41: 362 | C41: 1.85 | D41: 329
A42: 1.15 | B42: 362 | C42: 2.15 | D42: 329
A43: 0.85 | B43: 375 | C43: 1.85 | D43: 335
A44: 1.15 | B44: 375 | C44: 2.15 | D44: 335
A45: 0.85 | B45: 376 | C45: 1.85 | D45: 364
A46: 1.15 | B46: 376 | C46: 2.15 | D46: 364
A47: 0.85 | B47: 447 | C47: 1.85 | D47: 402
A48: 1.15 | B48: 447 | C48: 2.15 | D48: 402

Sheet 2 samples t test1_HID (hidden)
A1: 1 | B1: 138 | C1: 2 | D1: 31
A2: 0.94 | B2: 150 | C2: 1.8 | D2: 38
A3: 1.06 | B3: 150 | C3: 2.2 | D3: 48
A4: 1.04 | B4: 220 | C4: 1.866666667 | D4: 60
A5: 0.96 | B5: 222 | C5: 2.133333333 | D5: 62
A6: 1.08 | B6: 263 | C6: 1.933333333 | D6: 68
A7: 0.92 | B7: 275 | C7: 2.066666667 | D7: 70
A8: 1.026666667 | B8: 282 | C8: 2 | D8: 94
A9: 0.9733333333 | B9: 292 | C9: 1.914285714 | D9: 94
A10: 1.2 | B10: 296 | C10: 2.085714286 | D10: 104
A11: 0.8 | B11: 300 | C11: 2 | D11: 132
A12: 1.155555556 | B12: 309 | C12: 1.914285714 | D12: 138
A13: 0.8444444444 | B13: 310 | C13: 2.085714286 | D13: 139
A14: 1.111111111 | B14: 310 | C14: 2.057142857 | D14: 175
A15: 0.8888888889 | B15: 316 | C15: 1.942857143 | D15: 186
A16: 1.066666667 | B16: 317 | C16: 2.057142857 | D16: 238
A17: 0.9333333333 | B17: 319 | C17: 1.942857143 | D17: 245
A18: 1.022222222 | B18: 321 | C18: 2 | D18: 271
A19: 0.9777777778 | B19: 329 | C19: 1.914285714 | D19: 291
A20: 1.04 | B20: 338 | C20: 2.085714286 | D20: 300
A21: 0.96 | B21: 362 | C21: 2.057142857 | D21: 329
A22: 1.04 | B22: 375 | C22: 1.942857143 | D22: 335
A23: 0.96 | B23: 376 | C23: 2.057142857 | D23: 364
A24: 1 | B24: 447 | C24: 1.942857143 | D24: 402

Sheet 2 samples t test1_HID1 (hidden)
A1: 0.85 | B1: 138 | C1: 1.85 | D1: 31
A2: 1.15 | B2: 138 | C2: 2.15 | D2: 31
A3: 0.85 | B3: 150 | C3: 1.85 | D3: 38
A4: 1.15 | B4: 150 | C4: 2.15 | D4: 38
A5: 0.85 | B5: 150 | C5: 1.85 | D5: 48
A6: 1.15 | B6: 150 | C6: 2.15 | D6: 48
A7: 0.85 | B7: 220 | C7: 1.85 | D7: 60
A8: 1.15 | B8: 220 | C8: 2.15 | D8: 60
A9: 0.85 | B9: 222 | C9: 1.85 | D9: 62
A10: 1.15 | B10: 222 | C10: 2.15 | D10: 62
A11: 0.85 | B11: 263 | C11: 1.85 | D11: 68
A12: 1.15 | B12: 263 | C12: 2.15 | D12: 68
A13: 0.85 | B13: 275 | C13: 1.85 | D13: 70
A14: 1.15 | B14: 275 | C14: 2.15 | D14: 70
A15: 0.85 | B15: 282 | C15: 1.85 | D15: 94
A16: 1.15 | B16: 282 | C16: 2.15 | D16: 94
A17: 0.85 | B17: 292 | C17: 1.85 | D17: 94
A18: 1.15 | B18: 292 | C18: 2.15 | D18: 94
A19: 0.85 | B19: 296 | C19: 1.85 | D19: 104
A20: 1.15 | B20: 296 | C20: 2.15 | D20: 104
A21: 0.85 | B21: 300 | C21: 1.85 | D21: 132
A22: 1.15 | B22: 300 | C22: 2.15 | D22: 132
A23: 0.85 | B23: 309 | C23: 1.85 | D23: 138
A24: 1.15 | B24: 309 | C24: 2.15 | D24: 138
A25: 0.85 | B25: 310 | C25: 1.85 | D25: 139
A26: 1.15 | B26: 310 | C26: 2.15 | D26: 139
A27: 0.85 | B27: 310 | C27: 1.85 | D27: 175
A28: 1.15 | B28: 310 | C28: 2.15 | D28: 175
A29: 0.85 | B29: 316 | C29: 1.85 | D29: 186
A30: 1.15 | B30: 316 | C30: 2.15 | D30: 186
A31: 0.85 | B31: 317 | C31: 1.85 | D31: 238
A32: 1.15 | B32: 317 | C32: 2.15 | D32: 238
A33: 0.85 | B33: 319 | C33: 1.85 | D33: 245
A34: 1.15 | B34: 319 | C34: 2.15 | D34: 245
A35: 0.85 | B35: 321 | C35: 1.85 | D35: 271
A36: 1.15 | B36: 321 | C36: 2.15 | D36: 271
A37: 0.85 | B37: 329 | C37: 1.85 | D37: 291
A38: 1.15 | B38: 329 | C38: 2.15 | D38: 291
A39: 0.85 | B39: 338 | C39: 1.85 | D39: 300
A40: 1.15 | B40: 338 | C40: 2.15 | D40: 300
A41: 0.85 | B41: 362 | C41: 1.85 | D41: 329
A42: 1.15 | B42: 362 | C42: 2.15 | D42: 329
A43: 0.85 | B43: 375 | C43: 1.85 | D43: 335
A44: 1.15 | B44: 375 | C44: 2.15 | D44: 335
A45: 0.85 | B45: 376 | C45: 1.85 | D45: 364
A46: 1.15 | B46: 376 | C46: 2.15 | D46: 364
A47: 0.85 | B47: 447 | C47: 1.85 | D47: 402
A48: 1.15 | B48: 447 | C48: 2.15 | D48: 402

Sheet 2 samples t test1_HID2 (hidden)
A1: 1 | B1: 138 | C1: 2 | D1: 31
A2: 0.94 | B2: 150 | C2: 1.8 | D2: 38
A3: 1.06 | B3: 150 | C3: 2.2 | D3: 48
A4: 1.04 | B4: 220 | C4: 1.866666667 | D4: 60
A5: 0.96 | B5: 222 | C5: 2.133333333 | D5: 62
A6: 1.08 | B6: 263 | C6: 1.933333333 | D6: 68
A7: 0.92 | B7: 275 | C7: 2.066666667 | D7: 70
A8: 1.026666667 | B8: 282 | C8: 2 | D8: 94
A9: 0.9733333333 | B9: 292 | C9: 1.914285714 | D9: 94
A10: 1.2 | B10: 296 | C10: 2.085714286 | D10: 104
A11: 0.8 | B11: 300 | C11: 2 | D11: 132
A12: 1.155555556 | B12: 309 | C12: 1.914285714 | D12: 138
A13: 0.8444444444 | B13: 310 | C13: 2.085714286 | D13: 139
A14: 1.111111111 | B14: 310 | C14: 2.057142857 | D14: 175
A15: 0.8888888889 | B15: 316 | C15: 1.942857143 | D15: 186
A16: 1.066666667 | B16: 317 | C16: 2.057142857 | D16: 238
A17: 0.9333333333 | B17: 319 | C17: 1.942857143 | D17: 245
A18: 1.022222222 | B18: 321 | C18: 2 | D18: 271
A19: 0.9777777778 | B19: 329 | C19: 1.914285714 | D19: 291
A20: 1.04 | B20: 338 | C20: 2.085714286 | D20: 300
A21: 0.96 | B21: 362 | C21: 2.057142857 | D21: 329
A22: 1.04 | B22: 375 | C22: 1.942857143 | D22: 335
A23: 0.96 | B23: 376 | C23: 2.057142857 | D23: 364
A24: 1 | B24: 447 | C24: 1.942857143 | D24: 402

Sheet 2 samples t test1_HID3 (hidden)
A1: 0.85 | B1: 138 | C1: 1.85 | D1: 31
A2: 1.15 | B2: 138 | C2: 2.15 | D2: 31
A3: 0.85 | B3: 150 | C3: 1.85 | D3: 38
A4: 1.15 | B4: 150 | C4: 2.15 | D4: 38
A5: 0.85 | B5: 150 | C5: 1.85 | D5: 48
A6: 1.15 | B6: 150 | C6: 2.15 | D6: 48
A7: 0.85 | B7: 220 | C7: 1.85 | D7: 60
A8: 1.15 | B8: 220 | C8: 2.15 | D8: 60
A9: 0.85 | B9: 222 | C9: 1.85 | D9: 62
A10: 1.15 | B10: 222 | C10: 2.15 | D10: 62
A11: 0.85 | B11: 263 | C11: 1.85 | D11: 68
A12: 1.15 | B12: 263 | C12: 2.15 | D12: 68
A13: 0.85 | B13: 275 | C13: 1.85 | D13: 70
A14: 1.15 | B14: 275 | C14: 2.15 | D14: 70
A15: 0.85 | B15: 282 | C15: 1.85 | D15: 94
A16: 1.15 | B16: 282 | C16: 2.15 | D16: 94
A17: 0.85 | B17: 292 | C17: 1.85 | D17: 94
A18: 1.15 | B18: 292 | C18: 2.15 | D18: 94
A19: 0.85 | B19: 296 | C19: 1.85 | D19: 104
A20: 1.15 | B20: 296 | C20: 2.15 | D20: 104
A21: 0.85 | B21: 300 | C21: 1.85 | D21: 132
A22: 1.15 | B22: 300 | C22: 2.15 | D22: 132
A23: 0.85 | B23: 309 | C23: 1.85 | D23: 138
A24: 1.15 | B24: 309 | C24: 2.15 | D24: 138
A25: 0.85 | B25: 310 | C25: 1.85 | D25: 139
A26: 1.15 | B26: 310 | C26: 2.15 | D26: 139
A27: 0.85 | B27: 310 | C27: 1.85 | D27: 175
A28: 1.15 | B28: 310 | C28: 2.15 | D28: 175
A29: 0.85 | B29: 316 | C29: 1.85 | D29: 186
A30: 1.15 | B30: 316 | C30: 2.15 | D30: 186
A31: 0.85 | B31: 317 | C31: 1.85 | D31: 238
A32: 1.15 | B32: 317 | C32: 2.15 | D32: 238
A33: 0.85 | B33: 319 | C33: 1.85 | D33: 245
A34: 1.15 | B34: 319 | C34: 2.15 | D34: 245
A35: 0.85 | B35: 321 | C35: 1.85 | D35: 271
A36: 1.15 | B36: 321 | C36: 2.15 | D36: 271
A37: 0.85 | B37: 329 | C37: 1.85 | D37: 291
A38: 1.15 | B38: 329 | C38: 2.15 | D38: 291
A39: 0.85 | B39: 338 | C39: 1.85 | D39: 300
A40: 1.15 | B40: 338 | C40: 2.15 | D40: 300
A41: 0.85 | B41: 362 | C41: 1.85 | D41: 329
A42: 1.15 | B42: 362 | C42: 2.15 | D42: 329
A43: 0.85 | B43: 375 | C43: 1.85 | D43: 335
A44: 1.15 | B44: 375 | C44: 2.15 | D44: 335
A45: 0.85 | B45: 376 | C45: 1.85 | D45: 364
A46: 1.15 | B46: 376 | C46: 2.15 | D46: 364
A47: 0.85 | B47: 447 | C47: 1.85 | D47: 402
A48: 1.15 | B48: 447 | C48: 2.15 | D48: 402
